{"text_format":"1","workbook":"xlsx","n_sheets":4,"sheets":["REGISTROS","TD","DB","tags"],"not_rendered":{"charts":7,"images":1,"macros":1,"external_links":0,"defined_names":10,"comments":0,"pivot_tables":7},"unopened":[],"bounds":{"document_bytes":16777216,"sheet_cells":100000,"rows_first":2000,"rows_last":500,"rows_between":2000,"halvings":0,"cell_chars":16384,"cell_head_chars":4096},"cells_cut":0,"cells_raw":0,"read":"whole","date_system":"1900"}

{"sheet":"REGISTROS","index":0,"n_rows":165,"n_cols":12,"rows_kept":165,"cut":false,"hidden":false,"merged":[]}
["ITEM","FECHA","HORA DEL REPORTE","SEMANA DEL AÑO","VEHICULO","CONDUCTOR","GERENCIA","PROYECTO","COORDINADOR","EVENTO REGISTRADO","COMENTARIO","JUSTIFICACIÓN"]
[{"$f":"+ROW()-ROW(TBL_1[[#Headers],[ITEM]])","v":1},"2026-01-01","19:11:00",{"$f":"+IF(WEEKNUM(TBL_1[[#This Row],[FECHA]],2)<10,\"W0\"&WEEKNUM(TBL_1[[#This Row],[FECHA]],2),\"W\"&WEEKNUM(TBL_1[[#This Row],[FECHA]],2))","v":"W01"},"NG-131","CRISTIAN MAIRENA","OPERACIONES TÉCNICAS","FO","ARIEL HERNANDEZ","VEHICULO NO ASIGNADO/ NO AUTORIZADO","Comenta tecnico no que no ha movilizado la unidad, en plataforma vehiculo aparece en movimiento","SÍ"]
[{"$f":"+ROW()-ROW(TBL_1[[#Headers],[ITEM]])","v":2},"2026-01-01","20:35:00",{"$f":"+IF(WEEKNUM(TBL_1[[#This Row],[FECHA]],2)<10,\"W0\"&WEEKNUM(TBL_1[[#This Row],[FECHA]],2),\"W\"&WEEKNUM(TBL_1[[#This Row],[FECHA]],2))","v":"W01"},"A-078","WILLIAN AMADOR","OPERACIONES TÉCNICAS","FO","LENAR PALOMO","VEHICULO NO ASIGNADO/ NO AUTORIZADO",null,"NO"]
[{"$f":"+ROW()-ROW(TBL_1[[#Headers],[ITEM]])","v":3},"2026-01-01","21:15:00",{"$f":"+IF(WEEKNUM(TBL_1[[#This Row],[FECHA]],2)<10,\"W0\"&WEEKNUM(TBL_1[[#This Row],[FECHA]],2),\"W\"&WEEKNUM(TBL_1[[#This Row],[FECHA]],2))","v":"W01"},"NG-068","EDUARDO INTERIANO","PROYECTOS","PROYECTOS VARIOS","DANIEL RAMOS","VEHICULO NO AUTORIZADO",null,"NO"]
[{"$f":"+ROW()-ROW(TBL_1[[#Headers],[ITEM]])","v":4},"2026-01-01","21:31:00",{"$f":"+IF(WEEKNUM(TBL_1[[#This Row],[FECHA]],2)<10,\"W0\"&WEEKNUM(TBL_1[[#This Row],[FECHA]],2),\"W\"&WEEKNUM(TBL_1[[#This Row],[FECHA]],2))","v":"W01"},"NG-092","GERMAN ZAMBRANO ","PROYECTOS","PROYECTOS VARIOS","DANIEL RAMOS","VEHICULO NO ASIGNADO/ NO AUTORIZADO",null,"NO"]
[{"$f":"+ROW()-ROW(TBL_1[[#Headers],[ITEM]])","v":5},"2026-01-02","04:52:00",{"$f":"+IF(WEEKNUM(TBL_1[[#This Row],[FECHA]],2)<10,\"W0\"&WEEKNUM(TBL_1[[#This Row],[FECHA]],2),\"W\"&WEEKNUM(TBL_1[[#This Row],[FECHA]],2))","v":"W01"},"A-003","CESAR CHIRINOS","O&M MAPLE","MPC","MARIO MORAZAN","VEHICULO NO ASIGNADO/ NO AUTORIZADO",null,"NO"]
[{"$f":"+ROW()-ROW(TBL_1[[#Headers],[ITEM]])","v":6},"2026-01-02","05:44:00",{"$f":"+IF(WEEKNUM(TBL_1[[#This Row],[FECHA]],2)<10,\"W0\"&WEEKNUM(TBL_1[[#This Row],[FECHA]],2),\"W\"&WEEKNUM(TBL_1[[#This Row],[FECHA]],2))","v":"W01"},"A-044","JAIRO MAJANO","O&M T1","MPT","DAVID ZELAYA","VEHICULO NO ASIGNADO/ NO AUTORIZADO",null,"NO"]
[{"$f":"+ROW()-ROW(TBL_1[[#Headers],[ITEM]])","v":7},"2026-01-02","06:21:00",{"$f":"+IF(WEEKNUM(TBL_1[[#This Row],[FECHA]],2)<10,\"W0\"&WEEKNUM(TBL_1[[#This Row],[FECHA]],2),\"W\"&WEEKNUM(TBL_1[[#This Row],[FECHA]],2))","v":"W01"},"NG-131","CRISTIAN MAIRENA","OPERACIONES TÉCNICAS","FO","ARIEL HERNANDEZ","VEHICULO NO ASIGNADO/ NO AUTORIZADO",null,"SÍ"]
[{"$f":"+ROW()-ROW(TBL_1[[#Headers],[ITEM]])","v":8},"2026-01-02","16:29:00",{"$f":"+IF(WEEKNUM(TBL_1[[#This Row],[FECHA]],2)<10,\"W0\"&WEEKNUM(TBL_1[[#This Row],[FECHA]],2),\"W\"&WEEKNUM(TBL_1[[#This Row],[FECHA]],2))","v":"W01"},"A-014","KEVIN MUNGUIA","OPERACIONES TÉCNICAS","FO","LENAR PALOMO","VEHICULO NO ASIGNADO/ NO AUTORIZADO",null,"NO"]
[{"$f":"+ROW()-ROW(TBL_1[[#Headers],[ITEM]])","v":9},"2026-01-02","17:52:00",{"$f":"+IF(WEEKNUM(TBL_1[[#This Row],[FECHA]],2)<10,\"W0\"&WEEKNUM(TBL_1[[#This Row],[FECHA]],2),\"W\"&WEEKNUM(TBL_1[[#This Row],[FECHA]],2))","v":"W01"},"A-127","JONATHAN ALVAREZ","OPERACIONES TÉCNICAS","FO","LENAR PALOMO","VEHICULO NO ASIGNADO/ NO AUTORIZADO",null,"NO"]
[{"$f":"+ROW()-ROW(TBL_1[[#Headers],[ITEM]])","v":10},"2026-01-03","08:10:00",{"$f":"+IF(WEEKNUM(TBL_1[[#This Row],[FECHA]],2)<10,\"W0\"&WEEKNUM(TBL_1[[#This Row],[FECHA]],2),\"W\"&WEEKNUM(TBL_1[[#This Row],[FECHA]],2))","v":"W01"},"A-085","HAROL MEDINA","OPERACIONES TÉCNICAS","FO","ARIEL HERNANDEZ","VEHICULO NO ASIGNADO/ NO AUTORIZADO",null,"NO"]
[{"$f":"+ROW()-ROW(TBL_1[[#Headers],[ITEM]])","v":11},"2026-01-03","08:14:00",{"$f":"+IF(WEEKNUM(TBL_1[[#This Row],[FECHA]],2)<10,\"W0\"&WEEKNUM(TBL_1[[#This Row],[FECHA]],2),\"W\"&WEEKNUM(TBL_1[[#This Row],[FECHA]],2))","v":"W01"},"A-005","JEYSON AYALA","O&M MAPLE","MCC","JAVIER ECHENIQUE","VEHICULO NO AUTORIZADO",null,"NO"]
[{"$f":"+ROW()-ROW(TBL_1[[#Headers],[ITEM]])","v":12},"2026-01-03","08:15:00",{"$f":"+IF(WEEKNUM(TBL_1[[#This Row],[FECHA]],2)<10,\"W0\"&WEEKNUM(TBL_1[[#This Row],[FECHA]],2),\"W\"&WEEKNUM(TBL_1[[#This Row],[FECHA]],2))","v":"W01"},"NG-131","CRISTIAN MAIRENA","OPERACIONES TÉCNICAS","FO","ARIEL HERNANDEZ","VEHICULO NO ASIGNADO/ NO AUTORIZADO",null,"NO"]
[{"$f":"+ROW()-ROW(TBL_1[[#Headers],[ITEM]])","v":13},"2026-01-04","00:17:00",{"$f":"+IF(WEEKNUM(TBL_1[[#This Row],[FECHA]],2)<10,\"W0\"&WEEKNUM(TBL_1[[#This Row],[FECHA]],2),\"W\"&WEEKNUM(TBL_1[[#This Row],[FECHA]],2))","v":"W01"},"A-113","CARLOS ORTIZ","OPERACIONES TÉCNICAS","FO","ARIEL HERNANDEZ","VEHICULO NO ASIGNADO/ NO AUTORIZADO",null,"NO"]
[{"$f":"+ROW()-ROW(TBL_1[[#Headers],[ITEM]])","v":14},"2026-01-04","00:40:00",{"$f":"+IF(WEEKNUM(TBL_1[[#This Row],[FECHA]],2)<10,\"W0\"&WEEKNUM(TBL_1[[#This Row],[FECHA]],2),\"W\"&WEEKNUM(TBL_1[[#This Row],[FECHA]],2))","v":"W01"},"A-037","PEDRO VILLATORO","OPERACIONES TÉCNICAS","HFC","MISAEL CACERES","VEHICULO NO ASIGNADO/ NO AUTORIZADO",null,"NO"]
[{"$f":"+ROW()-ROW(TBL_1[[#Headers],[ITEM]])","v":15},"2026-01-04","08:43:00",{"$f":"+IF(WEEKNUM(TBL_1[[#This Row],[FECHA]],2)<10,\"W0\"&WEEKNUM(TBL_1[[#This Row],[FECHA]],2),\"W\"&WEEKNUM(TBL_1[[#This Row],[FECHA]],2))","v":"W01"},"A-132","ELVIN TORRES","OPERACIONES TÉCNICAS","FO","ELVIN TORRES","VEHICULO NO ASIGNADO/ NO AUTORIZADO",null,"NO"]
[{"$f":"+ROW()-ROW(TBL_1[[#Headers],[ITEM]])","v":16},"2026-01-04","08:50:00",{"$f":"+IF(WEEKNUM(TBL_1[[#This Row],[FECHA]],2)<10,\"W0\"&WEEKNUM(TBL_1[[#This Row],[FECHA]],2),\"W\"&WEEKNUM(TBL_1[[#This Row],[FECHA]],2))","v":"W01"},"NG-131","CRISTIAN MAIRENA","OPERACIONES TÉCNICAS","FO","ARIEL HERNANDEZ","VEHICULO NO ASIGNADO/ NO AUTORIZADO",null,"NO"]
[{"$f":"+ROW()-ROW(TBL_1[[#Headers],[ITEM]])","v":17},"2026-01-04","11:43:00",{"$f":"+IF(WEEKNUM(TBL_1[[#This Row],[FECHA]],2)<10,\"W0\"&WEEKNUM(TBL_1[[#This Row],[FECHA]],2),\"W\"&WEEKNUM(TBL_1[[#This Row],[FECHA]],2))","v":"W01"},"A-026","JOSE SOSA","OPERACIONES TÉCNICAS","FO","LUIS FIALLOS","VEHICULO NO ASIGNADO/ NO AUTORIZADO",null,"NO"]
[{"$f":"+ROW()-ROW(TBL_1[[#Headers],[ITEM]])","v":18},"2026-01-04","23:57:00",{"$f":"+IF(WEEKNUM(TBL_1[[#This Row],[FECHA]],2)<10,\"W0\"&WEEKNUM(TBL_1[[#This Row],[FECHA]],2),\"W\"&WEEKNUM(TBL_1[[#This Row],[FECHA]],2))","v":"W01"},"A-100","GUSTAVO CHAIN","O&M T1","MPT","GERARDO CALIX","VEHICULO NO AUTORIZADO",null,"NO"]
[{"$f":"+ROW()-ROW(TBL_1[[#Headers],[ITEM]])","v":19},"2026-01-05","07:03:00",{"$f":"+IF(WEEKNUM(TBL_1[[#This Row],[FECHA]],2)<10,\"W0\"&WEEKNUM(TBL_1[[#This Row],[FECHA]],2),\"W\"&WEEKNUM(TBL_1[[#This Row],[FECHA]],2))","v":"W02"},"A-078","WILLIAN AMADOR","OPERACIONES TÉCNICAS","FO","LENAR PALOMO","VEHICULO NO ASIGNADO",null,"NO"]
[{"$f":"+ROW()-ROW(TBL_1[[#Headers],[ITEM]])","v":20},"2026-01-05","13:21:00",{"$f":"+IF(WEEKNUM(TBL_1[[#This Row],[FECHA]],2)<10,\"W0\"&WEEKNUM(TBL_1[[#This Row],[FECHA]],2),\"W\"&WEEKNUM(TBL_1[[#This Row],[FECHA]],2))","v":"W02"},"A-122","DARLIN TREJO","PROYECTOS","PROYECTOS VARIOS","LEONARDO MARQUEZ","VEHICULO NO ASIGNADO/ NO AUTORIZADO",null,"NO"]
[{"$f":"+ROW()-ROW(TBL_1[[#Headers],[ITEM]])","v":21},"2026-01-05","13:22:00",{"$f":"+IF(WEEKNUM(TBL_1[[#This Row],[FECHA]],2)<10,\"W0\"&WEEKNUM(TBL_1[[#This Row],[FECHA]],2),\"W\"&WEEKNUM(TBL_1[[#This Row],[FECHA]],2))","v":"W02"},"A-026","DIOGENES MONTOYA","OPERACIONES TÉCNICAS","FO","LUIS FIALLOS","VEHICULO NO ASIGNADO/ NO AUTORIZADO",null,"NO"]
[{"$f":"+ROW()-ROW(TBL_1[[#Headers],[ITEM]])","v":22},"2026-01-05","13:23:00",{"$f":"+IF(WEEKNUM(TBL_1[[#This Row],[FECHA]],2)<10,\"W0\"&WEEKNUM(TBL_1[[#This Row],[FECHA]],2),\"W\"&WEEKNUM(TBL_1[[#This Row],[FECHA]],2))","v":"W02"},"A-113","CARLOS ORTIZ","OPERACIONES TÉCNICAS","FO","ARIEL HERNANDEZ","VEHICULO NO AUTORIZADO",null,"NO"]
[{"$f":"+ROW()-ROW(TBL_1[[#Headers],[ITEM]])","v":23},"2026-01-05","13:45:00",{"$f":"+IF(WEEKNUM(TBL_1[[#This Row],[FECHA]],2)<10,\"W0\"&WEEKNUM(TBL_1[[#This Row],[FECHA]],2),\"W\"&WEEKNUM(TBL_1[[#This Row],[FECHA]],2))","v":"W02"},"A-062","MARVIN LANDAVERDE","O&M T2","FLM MCE T2","JAIME CACERES","VEHICULO NO AUTORIZADO",null,"NO"]
[{"$f":"+ROW()-ROW(TBL_1[[#Headers],[ITEM]])","v":24},"2026-01-06","05:17:00",{"$f":"+IF(WEEKNUM(TBL_1[[#This Row],[FECHA]],2)<10,\"W0\"&WEEKNUM(TBL_1[[#This Row],[FECHA]],2),\"W\"&WEEKNUM(TBL_1[[#This Row],[FECHA]],2))","v":"W02"},"A-051","CARLITOS LOBO","O&M MAPLE","MGP RURAL","DANIEL MARROQUIN","VEHICULO NO AUTORIZADO",null,"NO"]
[{"$f":"+ROW()-ROW(TBL_1[[#Headers],[ITEM]])","v":25},"2026-01-06","05:18:00",{"$f":"+IF(WEEKNUM(TBL_1[[#This Row],[FECHA]],2)<10,\"W0\"&WEEKNUM(TBL_1[[#This Row],[FECHA]],2),\"W\"&WEEKNUM(TBL_1[[#This Row],[FECHA]],2))","v":"W02"},"A-008","SERGIO PEREZ","O&M MAPLE","MCC","DANIEL MARROQUIN","VEHICULO NO AUTORIZADO",null,"NO"]
[{"$f":"+ROW()-ROW(TBL_1[[#Headers],[ITEM]])","v":26},"2026-01-06","23:36:00",{"$f":"+IF(WEEKNUM(TBL_1[[#This Row],[FECHA]],2)<10,\"W0\"&WEEKNUM(TBL_1[[#This Row],[FECHA]],2),\"W\"&WEEKNUM(TBL_1[[#This Row],[FECHA]],2))","v":"W02"},"A-014","JIMY SALGADO","OPERACIONES TÉCNICAS","FO","LUIS FIALLOS","VEHICULO NO ASIGNADO/ NO AUTORIZADO",null,"NO"]
[{"$f":"+ROW()-ROW(TBL_1[[#Headers],[ITEM]])","v":27},"2026-01-07","06:44:00",{"$f":"+IF(WEEKNUM(TBL_1[[#This Row],[FECHA]],2)<10,\"W0\"&WEEKNUM(TBL_1[[#This Row],[FECHA]],2),\"W\"&WEEKNUM(TBL_1[[#This Row],[FECHA]],2))","v":"W02"},"A-069","JOSE RIVERA","O&M MAPLE","MPC","VICTOR ZECEÑA","VEHICULO NO AUTORIZADO",null,"NO"]
[{"$f":"+ROW()-ROW(TBL_1[[#Headers],[ITEM]])","v":28},"2026-01-07","09:39:00",{"$f":"+IF(WEEKNUM(TBL_1[[#This Row],[FECHA]],2)<10,\"W0\"&WEEKNUM(TBL_1[[#This Row],[FECHA]],2),\"W\"&WEEKNUM(TBL_1[[#This Row],[FECHA]],2))","v":"W02"},"NG-131","CRISTIAN MAIRENA","OPERACIONES TÉCNICAS","FO","ARIEL HERNANDEZ","VEHICULO NO ASIGNADO/ NO AUTORIZADO",null,"NO"]
[{"$f":"+ROW()-ROW(TBL_1[[#Headers],[ITEM]])","v":29},"2026-01-07","09:46:00",{"$f":"+IF(WEEKNUM(TBL_1[[#This Row],[FECHA]],2)<10,\"W0\"&WEEKNUM(TBL_1[[#This Row],[FECHA]],2),\"W\"&WEEKNUM(TBL_1[[#This Row],[FECHA]],2))","v":"W02"},"NG-103","ELIESER MEMBREÑO","O&M MAPLE","MPC","VICTOR ZECEÑA","VEHICULO NO AUTORIZADO",null,"NO"]
[{"$f":"+ROW()-ROW(TBL_1[[#Headers],[ITEM]])","v":30},"2026-01-08","13:31:00",{"$f":"+IF(WEEKNUM(TBL_1[[#This Row],[FECHA]],2)<10,\"W0\"&WEEKNUM(TBL_1[[#This Row],[FECHA]],2),\"W\"&WEEKNUM(TBL_1[[#This Row],[FECHA]],2))","v":"W02"},"A-145","OLVIN DURON","OPERACIONES TÉCNICAS","FO","ARIEL HERNANDEZ","VEHICULO NO ASIGNADO/ NO AUTORIZADO",null,"NO"]
[{"$f":"+ROW()-ROW(TBL_1[[#Headers],[ITEM]])","v":31},"2026-01-08","15:45:00",{"$f":"+IF(WEEKNUM(TBL_1[[#This Row],[FECHA]],2)<10,\"W0\"&WEEKNUM(TBL_1[[#This Row],[FECHA]],2),\"W\"&WEEKNUM(TBL_1[[#This Row],[FECHA]],2))","v":"W02"},"NG-131","CRISTIAN MAIRENA","OPERACIONES TÉCNICAS","FO","ARIEL HERNANDEZ","VEHICULO NO ASIGNADO/ NO AUTORIZADO",null,"NO"]
[{"$f":"+ROW()-ROW(TBL_1[[#Headers],[ITEM]])","v":32},"2026-01-08","17:00:00",{"$f":"+IF(WEEKNUM(TBL_1[[#This Row],[FECHA]],2)<10,\"W0\"&WEEKNUM(TBL_1[[#This Row],[FECHA]],2),\"W\"&WEEKNUM(TBL_1[[#This Row],[FECHA]],2))","v":"W02"},"A-085","HAROL MEDINA","OPERACIONES TÉCNICAS","FO","ARIEL HERNANDEZ","VEHICULO NO ASIGNADO/ NO AUTORIZADO",null,"NO"]
[{"$f":"+ROW()-ROW(TBL_1[[#Headers],[ITEM]])","v":33},"2026-01-08","13:47:00",{"$f":"+IF(WEEKNUM(TBL_1[[#This Row],[FECHA]],2)<10,\"W0\"&WEEKNUM(TBL_1[[#This Row],[FECHA]],2),\"W\"&WEEKNUM(TBL_1[[#This Row],[FECHA]],2))","v":"W02"},"A-014","JIMY SALGADO","OPERACIONES TÉCNICAS","FO","LUIS FIALLOS","VEHICULO NO ASIGNADO/ NO AUTORIZADO",null,"NO"]
[{"$f":"+ROW()-ROW(TBL_1[[#Headers],[ITEM]])","v":34},"2026-01-08","13:50:00",{"$f":"+IF(WEEKNUM(TBL_1[[#This Row],[FECHA]],2)<10,\"W0\"&WEEKNUM(TBL_1[[#This Row],[FECHA]],2),\"W\"&WEEKNUM(TBL_1[[#This Row],[FECHA]],2))","v":"W02"},"NG-084","DANIEL ZAVALA","OPERACIONES TÉCNICAS","FO","ARIEL HERNANDEZ","VEHICULO NO ASIGNADO/ NO AUTORIZADO",null,"NO"]
[{"$f":"+ROW()-ROW(TBL_1[[#Headers],[ITEM]])","v":35},"2026-01-09","16:00:00",{"$f":"+IF(WEEKNUM(TBL_1[[#This Row],[FECHA]],2)<10,\"W0\"&WEEKNUM(TBL_1[[#This Row],[FECHA]],2),\"W\"&WEEKNUM(TBL_1[[#This Row],[FECHA]],2))","v":"W02"},"A-007","JUAN CARLOS PUERTO","O&M MAPLE","MCC","JAVIER ECHENIQUE","VEHICULO NO ASIGNADO",null,"NO"]
[{"$f":"+ROW()-ROW(TBL_1[[#Headers],[ITEM]])","v":36},"2026-01-09","16:02:00",{"$f":"+IF(WEEKNUM(TBL_1[[#This Row],[FECHA]],2)<10,\"W0\"&WEEKNUM(TBL_1[[#This Row],[FECHA]],2),\"W\"&WEEKNUM(TBL_1[[#This Row],[FECHA]],2))","v":"W02"},"A-026","DIOGENES MONTOYA","OPERACIONES TÉCNICAS","FO","LUIS FIALLOS","VEHICULO NO ASIGNADO",null,"NO"]
[{"$f":"+ROW()-ROW(TBL_1[[#Headers],[ITEM]])","v":37},"2026-01-09","16:03:00",{"$f":"+IF(WEEKNUM(TBL_1[[#This Row],[FECHA]],2)<10,\"W0\"&WEEKNUM(TBL_1[[#This Row],[FECHA]],2),\"W\"&WEEKNUM(TBL_1[[#This Row],[FECHA]],2))","v":"W02"},"A-028","ANGEL GARCIA","OPERACIONES TÉCNICAS","FO","LUIS FIALLOS","VEHICULO NO ASIGNADO",null,"NO"]
[{"$f":"+ROW()-ROW(TBL_1[[#Headers],[ITEM]])","v":38},"2026-01-09","16:06:00",{"$f":"+IF(WEEKNUM(TBL_1[[#This Row],[FECHA]],2)<10,\"W0\"&WEEKNUM(TBL_1[[#This Row],[FECHA]],2),\"W\"&WEEKNUM(TBL_1[[#This Row],[FECHA]],2))","v":"W02"},"A-031","GERSON SERRANO","O&M T2","FLM MP T2","RONNY ROMERO","VEHICULO NO ASIGNADO",null,"NO"]
[{"$f":"+ROW()-ROW(TBL_1[[#Headers],[ITEM]])","v":39},"2026-01-09","16:08:00",{"$f":"+IF(WEEKNUM(TBL_1[[#This Row],[FECHA]],2)<10,\"W0\"&WEEKNUM(TBL_1[[#This Row],[FECHA]],2),\"W\"&WEEKNUM(TBL_1[[#This Row],[FECHA]],2))","v":"W02"},"A-034","NELSON PUERTO","O&M MAPLE","ABAS. RURAL","MARIO MORAZAN","VEHICULO NO ASIGNADO",null,"NO"]
[{"$f":"+ROW()-ROW(TBL_1[[#Headers],[ITEM]])","v":40},"2026-01-09","16:09:00",{"$f":"+IF(WEEKNUM(TBL_1[[#This Row],[FECHA]],2)<10,\"W0\"&WEEKNUM(TBL_1[[#This Row],[FECHA]],2),\"W\"&WEEKNUM(TBL_1[[#This Row],[FECHA]],2))","v":"W02"},"A-037","PEDRO VILLATORO","OPERACIONES TÉCNICAS","HFC","KARLA MELENDEZ","VEHICULO NO ASIGNADO",null,"NO"]
[{"$f":"+ROW()-ROW(TBL_1[[#Headers],[ITEM]])","v":41},"2026-01-09","16:10:00",{"$f":"+IF(WEEKNUM(TBL_1[[#This Row],[FECHA]],2)<10,\"W0\"&WEEKNUM(TBL_1[[#This Row],[FECHA]],2),\"W\"&WEEKNUM(TBL_1[[#This Row],[FECHA]],2))","v":"W02"},"A-043","JEAN CARLOS","O&M MAPLE","MCC","DANIEL MARROQUIN","VEHICULO NO ASIGNADO",null,"NO"]
[{"$f":"+ROW()-ROW(TBL_1[[#Headers],[ITEM]])","v":42},"2026-01-09","16:11:00",{"$f":"+IF(WEEKNUM(TBL_1[[#This Row],[FECHA]],2)<10,\"W0\"&WEEKNUM(TBL_1[[#This Row],[FECHA]],2),\"W\"&WEEKNUM(TBL_1[[#This Row],[FECHA]],2))","v":"W02"},"A-044","JAIRO MAJANO","O&M T1","MPT","DAVID ZELAYA","VEHICULO NO ASIGNADO",null,"NO"]
[{"$f":"+ROW()-ROW(TBL_1[[#Headers],[ITEM]])","v":43},"2026-01-09","16:15:00",{"$f":"+IF(WEEKNUM(TBL_1[[#This Row],[FECHA]],2)<10,\"W0\"&WEEKNUM(TBL_1[[#This Row],[FECHA]],2),\"W\"&WEEKNUM(TBL_1[[#This Row],[FECHA]],2))","v":"W02"},"A-047","MELVIN RUIZ","OPERACIONES TÉCNICAS","HFC","KARLA MELENDEZ","VEHICULO NO ASIGNADO",null,"NO"]
[{"$f":"+ROW()-ROW(TBL_1[[#Headers],[ITEM]])","v":44},"2026-01-09","16:18:00",{"$f":"+IF(WEEKNUM(TBL_1[[#This Row],[FECHA]],2)<10,\"W0\"&WEEKNUM(TBL_1[[#This Row],[FECHA]],2),\"W\"&WEEKNUM(TBL_1[[#This Row],[FECHA]],2))","v":"W02"},"A-053","EMILIO COTO","OPERACIONES TÉCNICAS","FO","ARIEL HERNANDEZ","VEHICULO NO ASIGNADO",null,"NO"]
[{"$f":"+ROW()-ROW(TBL_1[[#Headers],[ITEM]])","v":45},"2026-01-09","16:19:00",{"$f":"+IF(WEEKNUM(TBL_1[[#This Row],[FECHA]],2)<10,\"W0\"&WEEKNUM(TBL_1[[#This Row],[FECHA]],2),\"W\"&WEEKNUM(TBL_1[[#This Row],[FECHA]],2))","v":"W02"},"A-060","ELIESER MEMBREÑO","O&M MAPLE","MPC","VICTOR ZECEÑA","VEHICULO NO ASIGNADO",null,"NO"]
[{"$f":"+ROW()-ROW(TBL_1[[#Headers],[ITEM]])","v":46},"2026-01-09","16:21:00",{"$f":"+IF(WEEKNUM(TBL_1[[#This Row],[FECHA]],2)<10,\"W0\"&WEEKNUM(TBL_1[[#This Row],[FECHA]],2),\"W\"&WEEKNUM(TBL_1[[#This Row],[FECHA]],2))","v":"W02"},"A-064","EDUARDO FLORES","OPERACIONES TÉCNICAS","HFC","KARLA MELENDEZ","VEHICULO NO ASIGNADO",null,"NO"]
[{"$f":"+ROW()-ROW(TBL_1[[#Headers],[ITEM]])","v":47},"2026-01-09","16:22:00",{"$f":"+IF(WEEKNUM(TBL_1[[#This Row],[FECHA]],2)<10,\"W0\"&WEEKNUM(TBL_1[[#This Row],[FECHA]],2),\"W\"&WEEKNUM(TBL_1[[#This Row],[FECHA]],2))","v":"W02"},"A-072","EDUAR MENDOZA","O&M T2","FLM MP T2","RONNY ROMERO","VEHICULO NO ASIGNADO",null,"NO"]
[{"$f":"+ROW()-ROW(TBL_1[[#Headers],[ITEM]])","v":48},"2026-01-09","16:27:00",{"$f":"+IF(WEEKNUM(TBL_1[[#This Row],[FECHA]],2)<10,\"W0\"&WEEKNUM(TBL_1[[#This Row],[FECHA]],2),\"W\"&WEEKNUM(TBL_1[[#This Row],[FECHA]],2))","v":"W02"},"A-085","HAROL MEDINA","OPERACIONES TÉCNICAS","FO","ARIEL HERNANDEZ","VEHICULO NO ASIGNADO",null,"NO"]
[{"$f":"+ROW()-ROW(TBL_1[[#Headers],[ITEM]])","v":49},"2026-01-09","16:30:00",{"$f":"+IF(WEEKNUM(TBL_1[[#This Row],[FECHA]],2)<10,\"W0\"&WEEKNUM(TBL_1[[#This Row],[FECHA]],2),\"W\"&WEEKNUM(TBL_1[[#This Row],[FECHA]],2))","v":"W02"},"A-087","ERSI CANALES","OPERACIONES TÉCNICAS","FO","LENAR PALOMO","VEHICULO NO ASIGNADO",null,"NO"]
[{"$f":"+ROW()-ROW(TBL_1[[#Headers],[ITEM]])","v":50},"2026-01-09","16:31:00",{"$f":"+IF(WEEKNUM(TBL_1[[#This Row],[FECHA]],2)<10,\"W0\"&WEEKNUM(TBL_1[[#This Row],[FECHA]],2),\"W\"&WEEKNUM(TBL_1[[#This Row],[FECHA]],2))","v":"W02"},"A-089","DIOGENES MONTOYA","OPERACIONES TÉCNICAS","FO","LENAR PALOMO","VEHICULO NO ASIGNADO",null,"NO"]
[{"$f":"+ROW()-ROW(TBL_1[[#Headers],[ITEM]])","v":51},"2026-01-09","16:33:00",{"$f":"+IF(WEEKNUM(TBL_1[[#This Row],[FECHA]],2)<10,\"W0\"&WEEKNUM(TBL_1[[#This Row],[FECHA]],2),\"W\"&WEEKNUM(TBL_1[[#This Row],[FECHA]],2))","v":"W02"},"A-094","JORGE MARTINEZ","ADMINISTRACION","ADMIN","HECTOR RIVERA ","VEHICULO NO ASIGNADO",null,"NO"]
[{"$f":"+ROW()-ROW(TBL_1[[#Headers],[ITEM]])","v":52},"2026-01-09","16:35:00",{"$f":"+IF(WEEKNUM(TBL_1[[#This Row],[FECHA]],2)<10,\"W0\"&WEEKNUM(TBL_1[[#This Row],[FECHA]],2),\"W\"&WEEKNUM(TBL_1[[#This Row],[FECHA]],2))","v":"W02"},"A-110","JOSE GARCIA","OPERACIONES TÉCNICAS","HFC","KARLA MELENDEZ","VEHICULO NO ASIGNADO",null,"NO"]
[{"$f":"+ROW()-ROW(TBL_1[[#Headers],[ITEM]])","v":53},"2026-01-09","16:36:00",{"$f":"+IF(WEEKNUM(TBL_1[[#This Row],[FECHA]],2)<10,\"W0\"&WEEKNUM(TBL_1[[#This Row],[FECHA]],2),\"W\"&WEEKNUM(TBL_1[[#This Row],[FECHA]],2))","v":"W02"},"A-111","CRISTOBAL ELVIR","OPERACIONES TÉCNICAS","HFC","KARLA MELENDEZ","VEHICULO NO ASIGNADO",null,"NO"]
[{"$f":"+ROW()-ROW(TBL_1[[#Headers],[ITEM]])","v":54},"2026-01-09","16:37:00",{"$f":"+IF(WEEKNUM(TBL_1[[#This Row],[FECHA]],2)<10,\"W0\"&WEEKNUM(TBL_1[[#This Row],[FECHA]],2),\"W\"&WEEKNUM(TBL_1[[#This Row],[FECHA]],2))","v":"W02"},"A-113","CARLOS ORTIZ","OPERACIONES TÉCNICAS","FO","ARIEL HERNANDEZ","VEHICULO NO ASIGNADO",null,"NO"]
[{"$f":"+ROW()-ROW(TBL_1[[#Headers],[ITEM]])","v":55},"2026-01-09","16:38:00",{"$f":"+IF(WEEKNUM(TBL_1[[#This Row],[FECHA]],2)<10,\"W0\"&WEEKNUM(TBL_1[[#This Row],[FECHA]],2),\"W\"&WEEKNUM(TBL_1[[#This Row],[FECHA]],2))","v":"W02"},"A-115","JOSE COBOS","OPERACIONES TÉCNICAS","HFC","KARLA MELENDEZ","VEHICULO NO ASIGNADO",null,"NO"]
[{"$f":"+ROW()-ROW(TBL_1[[#Headers],[ITEM]])","v":56},"2026-01-09","16:39:00",{"$f":"+IF(WEEKNUM(TBL_1[[#This Row],[FECHA]],2)<10,\"W0\"&WEEKNUM(TBL_1[[#This Row],[FECHA]],2),\"W\"&WEEKNUM(TBL_1[[#This Row],[FECHA]],2))","v":"W02"},"A-116","DENILSON MARTINEZ","OPERACIONES TÉCNICAS","FO","LUIS FIALLOS","VEHICULO NO ASIGNADO",null,"NO"]
[{"$f":"+ROW()-ROW(TBL_1[[#Headers],[ITEM]])","v":57},"2026-01-09","16:41:00",{"$f":"+IF(WEEKNUM(TBL_1[[#This Row],[FECHA]],2)<10,\"W0\"&WEEKNUM(TBL_1[[#This Row],[FECHA]],2),\"W\"&WEEKNUM(TBL_1[[#This Row],[FECHA]],2))","v":"W02"},"A-118","ERMES LOPEZ","OPERACIONES TÉCNICAS","FO","LENAR PALOMO","VEHICULO NO ASIGNADO",null,"NO"]
[{"$f":"+ROW()-ROW(TBL_1[[#Headers],[ITEM]])","v":58},"2026-01-09","16:43:00",{"$f":"+IF(WEEKNUM(TBL_1[[#This Row],[FECHA]],2)<10,\"W0\"&WEEKNUM(TBL_1[[#This Row],[FECHA]],2),\"W\"&WEEKNUM(TBL_1[[#This Row],[FECHA]],2))","v":"W02"},"A-120","LUIS MONDRAGON","OPERACIONES TÉCNICAS","FO","LENAR PALOMO","VEHICULO NO ASIGNADO",null,"NO"]
[{"$f":"+ROW()-ROW(TBL_1[[#Headers],[ITEM]])","v":59},"2026-01-09","16:44:00",{"$f":"+IF(WEEKNUM(TBL_1[[#This Row],[FECHA]],2)<10,\"W0\"&WEEKNUM(TBL_1[[#This Row],[FECHA]],2),\"W\"&WEEKNUM(TBL_1[[#This Row],[FECHA]],2))","v":"W02"},"A-122","DARLIN TREJO","PROYECTOS","PROYECTOS VARIOS","LEONARDO MARQUEZ","VEHICULO NO ASIGNADO",null,"NO"]
[{"$f":"+ROW()-ROW(TBL_1[[#Headers],[ITEM]])","v":60},"2026-01-09","16:45:00",{"$f":"+IF(WEEKNUM(TBL_1[[#This Row],[FECHA]],2)<10,\"W0\"&WEEKNUM(TBL_1[[#This Row],[FECHA]],2),\"W\"&WEEKNUM(TBL_1[[#This Row],[FECHA]],2))","v":"W02"},"A-131","GASPAR TROCHEZ","OPERACIONES TÉCNICAS","FO","LENAR PALOMO","VEHICULO NO ASIGNADO",null,"NO"]
[{"$f":"+ROW()-ROW(TBL_1[[#Headers],[ITEM]])","v":61},"2026-01-09","16:57:00",{"$f":"+IF(WEEKNUM(TBL_1[[#This Row],[FECHA]],2)<10,\"W0\"&WEEKNUM(TBL_1[[#This Row],[FECHA]],2),\"W\"&WEEKNUM(TBL_1[[#This Row],[FECHA]],2))","v":"W02"},"A-145","OLVIN DURON","OPERACIONES TÉCNICAS","FO","ARIEL HERNANDEZ","VEHICULO NO ASIGNADO",null,"NO"]
[{"$f":"+ROW()-ROW(TBL_1[[#Headers],[ITEM]])","v":62},"2026-01-09","17:06:00",{"$f":"+IF(WEEKNUM(TBL_1[[#This Row],[FECHA]],2)<10,\"W0\"&WEEKNUM(TBL_1[[#This Row],[FECHA]],2),\"W\"&WEEKNUM(TBL_1[[#This Row],[FECHA]],2))","v":"W02"},"NG-089","OSCAR ESCOBAR","PROYECTOS","PROYECTOS VARIOS","LEONARDO MARQUEZ","VEHICULO NO ASIGNADO",null,"NO"]
[{"$f":"+ROW()-ROW(TBL_1[[#Headers],[ITEM]])","v":63},"2026-01-09","17:08:00",{"$f":"+IF(WEEKNUM(TBL_1[[#This Row],[FECHA]],2)<10,\"W0\"&WEEKNUM(TBL_1[[#This Row],[FECHA]],2),\"W\"&WEEKNUM(TBL_1[[#This Row],[FECHA]],2))","v":"W02"},"NG-093","CESAR VARELA","PROYECTOS","PROYECTOS VARIOS","LEONARDO MARQUEZ","VEHICULO NO ASIGNADO",null,"NO"]
[{"$f":"+ROW()-ROW(TBL_1[[#Headers],[ITEM]])","v":64},"2026-01-10","05:18:00",{"$f":"+IF(WEEKNUM(TBL_1[[#This Row],[FECHA]],2)<10,\"W0\"&WEEKNUM(TBL_1[[#This Row],[FECHA]],2),\"W\"&WEEKNUM(TBL_1[[#This Row],[FECHA]],2))","v":"W02"},"A-127","JONATHAN ALVAREZ","OPERACIONES TÉCNICAS","FO","LENAR PALOMO","VEHICULO NO ASIGNADO",null,"NO"]
[{"$f":"+ROW()-ROW(TBL_1[[#Headers],[ITEM]])","v":65},"2026-01-10","07:14:00",{"$f":"+IF(WEEKNUM(TBL_1[[#This Row],[FECHA]],2)<10,\"W0\"&WEEKNUM(TBL_1[[#This Row],[FECHA]],2),\"W\"&WEEKNUM(TBL_1[[#This Row],[FECHA]],2))","v":"W02"},"A-020","CESAR CHIRINOS","O&M MAPLE","MPC","MARIO MORAZAN","VEHICULO NO AUTORIZADO",null,"NO"]
[{"$f":"+ROW()-ROW(TBL_1[[#Headers],[ITEM]])","v":66},"2026-01-10","13:56:00",{"$f":"+IF(WEEKNUM(TBL_1[[#This Row],[FECHA]],2)<10,\"W0\"&WEEKNUM(TBL_1[[#This Row],[FECHA]],2),\"W\"&WEEKNUM(TBL_1[[#This Row],[FECHA]],2))","v":"W02"},"A-008","SERGIO PEREZ","O&M MAPLE","MCC","JAVIER ECHENIQUE","VEHICULO NO AUTORIZADO","Comenta coordinador que el tecnico no estaba autrizado a movilizar la unidad.","NO"]
[{"$f":"+ROW()-ROW(TBL_1[[#Headers],[ITEM]])","v":67},"2026-01-10","14:01:00",{"$f":"+IF(WEEKNUM(TBL_1[[#This Row],[FECHA]],2)<10,\"W0\"&WEEKNUM(TBL_1[[#This Row],[FECHA]],2),\"W\"&WEEKNUM(TBL_1[[#This Row],[FECHA]],2))","v":"W02"},"A-132","JIMY SALGADO","OPERACIONES TÉCNICAS","FO","LUIS FIALLOS","VEHICULO NO ASIGNADO/ NO AUTORIZADO",null,"NO"]
[{"$f":"+ROW()-ROW(TBL_1[[#Headers],[ITEM]])","v":68},"2026-01-10","16:04:00",{"$f":"+IF(WEEKNUM(TBL_1[[#This Row],[FECHA]],2)<10,\"W0\"&WEEKNUM(TBL_1[[#This Row],[FECHA]],2),\"W\"&WEEKNUM(TBL_1[[#This Row],[FECHA]],2))","v":"W02"},"NG-089","OSCAR ESCOBAR","PROYECTOS","PROYECTOS VARIOS","LEONARDO MARQUEZ","VEHICULO NO AUTORIZADO",null,"NO"]
[{"$f":"+ROW()-ROW(TBL_1[[#Headers],[ITEM]])","v":69},"2026-01-10","16:14:00",{"$f":"+IF(WEEKNUM(TBL_1[[#This Row],[FECHA]],2)<10,\"W0\"&WEEKNUM(TBL_1[[#This Row],[FECHA]],2),\"W\"&WEEKNUM(TBL_1[[#This Row],[FECHA]],2))","v":"W02"},"NG-131","CRISTIAN MAIRENA","OPERACIONES TÉCNICAS","FO","ARIEL HERNANDEZ","VEHICULO NO ASIGNADO/ NO AUTORIZADO",null,"NO"]
[{"$f":"+ROW()-ROW(TBL_1[[#Headers],[ITEM]])","v":70},"2026-01-10","19:58:00",{"$f":"+IF(WEEKNUM(TBL_1[[#This Row],[FECHA]],2)<10,\"W0\"&WEEKNUM(TBL_1[[#This Row],[FECHA]],2),\"W\"&WEEKNUM(TBL_1[[#This Row],[FECHA]],2))","v":"W02"},"A-026","DIOGENES MONTOYA","OPERACIONES TÉCNICAS","FO","LUIS FIALLOS","VEHICULO NO ASIGNADO/ NO AUTORIZADO",null,"NO"]
[{"$f":"+ROW()-ROW(TBL_1[[#Headers],[ITEM]])","v":71},"2026-01-10","20:25:00",{"$f":"+IF(WEEKNUM(TBL_1[[#This Row],[FECHA]],2)<10,\"W0\"&WEEKNUM(TBL_1[[#This Row],[FECHA]],2),\"W\"&WEEKNUM(TBL_1[[#This Row],[FECHA]],2))","v":"W02"},"A-014","JIMY SALGADO","OPERACIONES TÉCNICAS","FO","LUIS FIALLOS","VEHICULO NO ASIGNADO/ NO AUTORIZADO",null,"NO"]
[{"$f":"+ROW()-ROW(TBL_1[[#Headers],[ITEM]])","v":72},"2026-01-10","22:02:00",{"$f":"+IF(WEEKNUM(TBL_1[[#This Row],[FECHA]],2)<10,\"W0\"&WEEKNUM(TBL_1[[#This Row],[FECHA]],2),\"W\"&WEEKNUM(TBL_1[[#This Row],[FECHA]],2))","v":"W02"},"A-002","MARIO VILLALTA","O&M MAPLE","MPC","VICTOR ZECEÑA","VEHICULO NO AUTORIZADO",null,"NO"]
[{"$f":"+ROW()-ROW(TBL_1[[#Headers],[ITEM]])","v":73},"2026-01-10","22:35:00",{"$f":"+IF(WEEKNUM(TBL_1[[#This Row],[FECHA]],2)<10,\"W0\"&WEEKNUM(TBL_1[[#This Row],[FECHA]],2),\"W\"&WEEKNUM(TBL_1[[#This Row],[FECHA]],2))","v":"W02"},"NG-089","OSCAR ESCOBAR","PROYECTOS","PROYECTOS VARIOS","LEONARDO MARQUEZ","VEHICULO NO AUTORIZADO",null,"NO"]
[{"$f":"+ROW()-ROW(TBL_1[[#Headers],[ITEM]])","v":74},"2026-01-11","10:17:00",{"$f":"+IF(WEEKNUM(TBL_1[[#This Row],[FECHA]],2)<10,\"W0\"&WEEKNUM(TBL_1[[#This Row],[FECHA]],2),\"W\"&WEEKNUM(TBL_1[[#This Row],[FECHA]],2))","v":"W02"},"A-132","JIMY SALGADO","OPERACIONES TÉCNICAS","FO","LUIS FIALLOS","VEHICULO NO ASIGNADO/ NO AUTORIZADO",null,"NO"]
[{"$f":"+ROW()-ROW(TBL_1[[#Headers],[ITEM]])","v":75},"2026-01-11","10:52:00",{"$f":"+IF(WEEKNUM(TBL_1[[#This Row],[FECHA]],2)<10,\"W0\"&WEEKNUM(TBL_1[[#This Row],[FECHA]],2),\"W\"&WEEKNUM(TBL_1[[#This Row],[FECHA]],2))","v":"W02"},"A-116","DENILSON MARTINEZ","OPERACIONES TÉCNICAS","FO","LUIS FIALLOS","VEHICULO NO AUTORIZADO",null,"NO"]
[{"$f":"+ROW()-ROW(TBL_1[[#Headers],[ITEM]])","v":76},"2026-01-11","12:39:00",{"$f":"+IF(WEEKNUM(TBL_1[[#This Row],[FECHA]],2)<10,\"W0\"&WEEKNUM(TBL_1[[#This Row],[FECHA]],2),\"W\"&WEEKNUM(TBL_1[[#This Row],[FECHA]],2))","v":"W02"},"A-117","CESAR OCHOA","OPERACIONES TÉCNICAS","CONSTRUCCION FTTH","ELVIN TORRES","VEHICULO NO AUTORIZADO",null,"NO"]
[{"$f":"+ROW()-ROW(TBL_1[[#Headers],[ITEM]])","v":77},"2026-01-11","15:59:00",{"$f":"+IF(WEEKNUM(TBL_1[[#This Row],[FECHA]],2)<10,\"W0\"&WEEKNUM(TBL_1[[#This Row],[FECHA]],2),\"W\"&WEEKNUM(TBL_1[[#This Row],[FECHA]],2))","v":"W02"},"A-031","GERSON SERRANO","O&M T2","FLM MP T2","RONNY ROMERO","VEHICULO NO AUTORIZADO","Comenta coordinador que el tecnico no estaba autrizado a movilizar la unidad.","NO"]
[{"$f":"+ROW()-ROW(TBL_1[[#Headers],[ITEM]])","v":78},"2026-01-11","20:18:00",{"$f":"+IF(WEEKNUM(TBL_1[[#This Row],[FECHA]],2)<10,\"W0\"&WEEKNUM(TBL_1[[#This Row],[FECHA]],2),\"W\"&WEEKNUM(TBL_1[[#This Row],[FECHA]],2))","v":"W02"},"A-014","JIMY SALGADO","OPERACIONES TÉCNICAS","FO","LUIS FIALLOS","VEHICULO NO ASIGNADO/ NO AUTORIZADO",null,"NO"]
[{"$f":"+ROW()-ROW(TBL_1[[#Headers],[ITEM]])","v":79},"2026-01-11","10:06:00",{"$f":"+IF(WEEKNUM(TBL_1[[#This Row],[FECHA]],2)<10,\"W0\"&WEEKNUM(TBL_1[[#This Row],[FECHA]],2),\"W\"&WEEKNUM(TBL_1[[#This Row],[FECHA]],2))","v":"W02"},"NG-095","ANTONY RODAS","PROYECTOS","PROYECTOS VARIOS","OSCAR ROQUE","VEHICULO NO AUTORIZADO",null,"NO"]
[{"$f":"+ROW()-ROW(TBL_1[[#Headers],[ITEM]])","v":80},"2026-01-11","22:25:00",{"$f":"+IF(WEEKNUM(TBL_1[[#This Row],[FECHA]],2)<10,\"W0\"&WEEKNUM(TBL_1[[#This Row],[FECHA]],2),\"W\"&WEEKNUM(TBL_1[[#This Row],[FECHA]],2))","v":"W02"},"A-113","CARLOS ORTIZ","OPERACIONES TÉCNICAS","FO","ARIEL HERNANDEZ","VEHICULO NO ASIGNADO/ NO AUTORIZADO",null,"NO"]
[{"$f":"+ROW()-ROW(TBL_1[[#Headers],[ITEM]])","v":81},"2026-01-12","04:09:00",{"$f":"+IF(WEEKNUM(TBL_1[[#This Row],[FECHA]],2)<10,\"W0\"&WEEKNUM(TBL_1[[#This Row],[FECHA]],2),\"W\"&WEEKNUM(TBL_1[[#This Row],[FECHA]],2))","v":"W03"},"A-032","WALNER MARTINEZ","O&M MAPLE","MPC","MARIO MORAZAN","VEHICULO NO AUTORIZADO",null,"NO"]
[{"$f":"+ROW()-ROW(TBL_1[[#Headers],[ITEM]])","v":82},"2026-01-12","11:27:00",{"$f":"+IF(WEEKNUM(TBL_1[[#This Row],[FECHA]],2)<10,\"W0\"&WEEKNUM(TBL_1[[#This Row],[FECHA]],2),\"W\"&WEEKNUM(TBL_1[[#This Row],[FECHA]],2))","v":"W03"},"A-094","FLOTA","ADMINISTRACION","FLOTA","HECTOR RIVERA ","VEHICULO NO ASIGNADO/ NO AUTORIZADO",null,"NO"]
[{"$f":"+ROW()-ROW(TBL_1[[#Headers],[ITEM]])","v":83},"2026-01-12","11:33:00",{"$f":"+IF(WEEKNUM(TBL_1[[#This Row],[FECHA]],2)<10,\"W0\"&WEEKNUM(TBL_1[[#This Row],[FECHA]],2),\"W\"&WEEKNUM(TBL_1[[#This Row],[FECHA]],2))","v":"W03"},"A-092","FLOTA","ADMINISTRACION","FLOTA","HECTOR RIVERA ","VEHICULO NO ASIGNADO/ NO AUTORIZADO",null,"NO"]
[{"$f":"+ROW()-ROW(TBL_1[[#Headers],[ITEM]])","v":84},"2026-01-12","11:36:00",{"$f":"+IF(WEEKNUM(TBL_1[[#This Row],[FECHA]],2)<10,\"W0\"&WEEKNUM(TBL_1[[#This Row],[FECHA]],2),\"W\"&WEEKNUM(TBL_1[[#This Row],[FECHA]],2))","v":"W03"},"NG-099","JUNIOR SANCHEZ","OPERACIONES TÉCNICAS","FOT MANT","LUIS FIALLOS","VEHICULO NO AUTORIZADO",null,"NO"]
[{"$f":"+ROW()-ROW(TBL_1[[#Headers],[ITEM]])","v":85},"2026-01-12","12:38:00",{"$f":"+IF(WEEKNUM(TBL_1[[#This Row],[FECHA]],2)<10,\"W0\"&WEEKNUM(TBL_1[[#This Row],[FECHA]],2),\"W\"&WEEKNUM(TBL_1[[#This Row],[FECHA]],2))","v":"W03"},"NG-089","OSCAR ESCOBAR","PROYECTOS","PROYECTOS VARIOS","LEONARDO MARQUEZ","VEHICULO NO AUTORIZADO",null,"NO"]
[{"$f":"+ROW()-ROW(TBL_1[[#Headers],[ITEM]])","v":86},"2026-01-12","14:37:00",{"$f":"+IF(WEEKNUM(TBL_1[[#This Row],[FECHA]],2)<10,\"W0\"&WEEKNUM(TBL_1[[#This Row],[FECHA]],2),\"W\"&WEEKNUM(TBL_1[[#This Row],[FECHA]],2))","v":"W03"},"A-009","VICTOR PUERTO","O&M MAPLE","ABAS. RURAL","VICTOR ZECEÑA","VEHICULO NO AUTORIZADO",null,"NO"]
[{"$f":"+ROW()-ROW(TBL_1[[#Headers],[ITEM]])","v":87},"2026-01-12","21:02:00",{"$f":"+IF(WEEKNUM(TBL_1[[#This Row],[FECHA]],2)<10,\"W0\"&WEEKNUM(TBL_1[[#This Row],[FECHA]],2),\"W\"&WEEKNUM(TBL_1[[#This Row],[FECHA]],2))","v":"W03"},"NG-081","FLOTA","ADMINISTRACION","FLOTA","HECTOR RIVERA ","VEHICULO NO ASIGNADO/ NO AUTORIZADO",null,"NO"]
[{"$f":"+ROW()-ROW(TBL_1[[#Headers],[ITEM]])","v":88},"2026-01-12","22:07:00",{"$f":"+IF(WEEKNUM(TBL_1[[#This Row],[FECHA]],2)<10,\"W0\"&WEEKNUM(TBL_1[[#This Row],[FECHA]],2),\"W\"&WEEKNUM(TBL_1[[#This Row],[FECHA]],2))","v":"W03"},"A-117","CESAR OCHOA","OPERACIONES TÉCNICAS","CONSTRUCCION FTTH","LENAR PALOMO","VEHICULO NO AUTORIZADO",null,"NO"]
[{"$f":"+ROW()-ROW(TBL_1[[#Headers],[ITEM]])","v":89},"2026-01-12","22:32:00",{"$f":"+IF(WEEKNUM(TBL_1[[#This Row],[FECHA]],2)<10,\"W0\"&WEEKNUM(TBL_1[[#This Row],[FECHA]],2),\"W\"&WEEKNUM(TBL_1[[#This Row],[FECHA]],2))","v":"W03"},"NG-092","GERMAN ZAMBRANO","PROYECTOS","PROYECTOS VARIOS","LEONARDO MARQUEZ","VEHICULO NO AUTORIZADO",null,"NO"]
[{"$f":"+ROW()-ROW(TBL_1[[#Headers],[ITEM]])","v":90},"2026-01-13","09:32:00",{"$f":"+IF(WEEKNUM(TBL_1[[#This Row],[FECHA]],2)<10,\"W0\"&WEEKNUM(TBL_1[[#This Row],[FECHA]],2),\"W\"&WEEKNUM(TBL_1[[#This Row],[FECHA]],2))","v":"W03"},"A-007","JUAN PUERTO","O&M MAPLE","MCC","JAVIER ECHENIQUE","VEHICULO NO ASIGNADO",null,"NO"]
[{"$f":"+ROW()-ROW(TBL_1[[#Headers],[ITEM]])","v":91},"2026-01-13","09:33:00",{"$f":"+IF(WEEKNUM(TBL_1[[#This Row],[FECHA]],2)<10,\"W0\"&WEEKNUM(TBL_1[[#This Row],[FECHA]],2),\"W\"&WEEKNUM(TBL_1[[#This Row],[FECHA]],2))","v":"W03"},"A-038","HENRY PALMA","PROYECTOS","SINERGIA","MARIO SANCHEZ","VEHICULO NO ASIGNADO",null,"NO"]
[{"$f":"+ROW()-ROW(TBL_1[[#Headers],[ITEM]])","v":92},"2026-01-13","09:34:00",{"$f":"+IF(WEEKNUM(TBL_1[[#This Row],[FECHA]],2)<10,\"W0\"&WEEKNUM(TBL_1[[#This Row],[FECHA]],2),\"W\"&WEEKNUM(TBL_1[[#This Row],[FECHA]],2))","v":"W03"},"A-133","EDWIN REYES","OPERACIONES TÉCNICAS","FO","LUIS FIALLOS","VEHICULO NO ASIGNADO/ NO AUTORIZADO",null,"NO"]
[{"$f":"+ROW()-ROW(TBL_1[[#Headers],[ITEM]])","v":93},"2026-01-13","23:03:00",{"$f":"+IF(WEEKNUM(TBL_1[[#This Row],[FECHA]],2)<10,\"W0\"&WEEKNUM(TBL_1[[#This Row],[FECHA]],2),\"W\"&WEEKNUM(TBL_1[[#This Row],[FECHA]],2))","v":"W03"},"A-072","EDUAR MENDOZA","O&M T2","FLM MP T2","RONNY ROMERO","VEHICULO NO AUTORIZADO",null,"NO"]
[{"$f":"+ROW()-ROW(TBL_1[[#Headers],[ITEM]])","v":94},"2026-01-14","01:40:00",{"$f":"+IF(WEEKNUM(TBL_1[[#This Row],[FECHA]],2)<10,\"W0\"&WEEKNUM(TBL_1[[#This Row],[FECHA]],2),\"W\"&WEEKNUM(TBL_1[[#This Row],[FECHA]],2))","v":"W03"},"A-072","EDUAR MENDOZA","O&M T2","FLM MP T2","RONNY ROMERO","VEHICULO NO AUTORIZADO",null,"NO"]
[{"$f":"+ROW()-ROW(TBL_1[[#Headers],[ITEM]])","v":95},"2026-01-15","12:00:00",{"$f":"+IF(WEEKNUM(TBL_1[[#This Row],[FECHA]],2)<10,\"W0\"&WEEKNUM(TBL_1[[#This Row],[FECHA]],2),\"W\"&WEEKNUM(TBL_1[[#This Row],[FECHA]],2))","v":"W03"},"NG-114","OSMAN GIRON","O&M T2","FLM MCE T2","JAIME CACERES","VEHICULO NO AUTORIZADO",null,"NO"]
[{"$f":"+ROW()-ROW(TBL_1[[#Headers],[ITEM]])","v":96},"2026-01-15","22:25:00",{"$f":"+IF(WEEKNUM(TBL_1[[#This Row],[FECHA]],2)<10,\"W0\"&WEEKNUM(TBL_1[[#This Row],[FECHA]],2),\"W\"&WEEKNUM(TBL_1[[#This Row],[FECHA]],2))","v":"W03"},"A-002","MARIO VILLALTA","O&M MAPLE","MPC","VICTOR ZECEÑA","VEHICULO NO AUTORIZADO",null,"NO"]
[{"$f":"+ROW()-ROW(TBL_1[[#Headers],[ITEM]])","v":97},"2026-01-16","18:54:00",{"$f":"+IF(WEEKNUM(TBL_1[[#This Row],[FECHA]],2)<10,\"W0\"&WEEKNUM(TBL_1[[#This Row],[FECHA]],2),\"W\"&WEEKNUM(TBL_1[[#This Row],[FECHA]],2))","v":"W03"},"A-089","DIOGENES MONTOYA","OPERACIONES TÉCNICAS","FO","LENAR PALOMO","VEHICULO NO ASIGNADO/ NO AUTORIZADO",null,"NO"]
[{"$f":"+ROW()-ROW(TBL_1[[#Headers],[ITEM]])","v":98},"2026-01-16","18:55:00",{"$f":"+IF(WEEKNUM(TBL_1[[#This Row],[FECHA]],2)<10,\"W0\"&WEEKNUM(TBL_1[[#This Row],[FECHA]],2),\"W\"&WEEKNUM(TBL_1[[#This Row],[FECHA]],2))","v":"W03"},"A-069","ISAAC ARTIAGA","O&M MAPLE","SUPERVISION","JORGE GAMARRA","VEHICULO NO AUTORIZADO",null,"NO"]
[{"$f":"+ROW()-ROW(TBL_1[[#Headers],[ITEM]])","v":99},"2026-01-16","19:12:00",{"$f":"+IF(WEEKNUM(TBL_1[[#This Row],[FECHA]],2)<10,\"W0\"&WEEKNUM(TBL_1[[#This Row],[FECHA]],2),\"W\"&WEEKNUM(TBL_1[[#This Row],[FECHA]],2))","v":"W03"},"NG-137","PABLO MERAZ","OPERACIONES TÉCNICAS","FO","IVAN PAZ","VEHICULO NO AUTORIZADO",null,"NO"]
[{"$f":"+ROW()-ROW(TBL_1[[#Headers],[ITEM]])","v":100},"2026-01-16","19:14:00",{"$f":"+IF(WEEKNUM(TBL_1[[#This Row],[FECHA]],2)<10,\"W0\"&WEEKNUM(TBL_1[[#This Row],[FECHA]],2),\"W\"&WEEKNUM(TBL_1[[#This Row],[FECHA]],2))","v":"W03"},"A-144","KEVIN MUNGUIA","OPERACIONES TÉCNICAS","FO","LENAR PALOMO","VEHICULO NO ASIGNADO/ NO AUTORIZADO",null,"NO"]
[{"$f":"+ROW()-ROW(TBL_1[[#Headers],[ITEM]])","v":101},"2026-01-16","22:17:00",{"$f":"+IF(WEEKNUM(TBL_1[[#This Row],[FECHA]],2)<10,\"W0\"&WEEKNUM(TBL_1[[#This Row],[FECHA]],2),\"W\"&WEEKNUM(TBL_1[[#This Row],[FECHA]],2))","v":"W03"},"NG-125","ALLAN HERNANDEZ","OPERACIONES TÉCNICAS","HFC","KARLA MELENDEZ","VEHICULO NO AUTORIZADO",null,"NO"]
[{"$f":"+ROW()-ROW(TBL_1[[#Headers],[ITEM]])","v":102},"2026-01-16","22:37:00",{"$f":"+IF(WEEKNUM(TBL_1[[#This Row],[FECHA]],2)<10,\"W0\"&WEEKNUM(TBL_1[[#This Row],[FECHA]],2),\"W\"&WEEKNUM(TBL_1[[#This Row],[FECHA]],2))","v":"W03"},"A-034","NELSON PUERTO","O&M MAPLE","ABAS. RURAL","MARIO MORAZAN","VEHICULO NO AUTORIZADO",null,"NO"]
[{"$f":"+ROW()-ROW(TBL_1[[#Headers],[ITEM]])","v":103},"2026-01-17","02:42:00",{"$f":"+IF(WEEKNUM(TBL_1[[#This Row],[FECHA]],2)<10,\"W0\"&WEEKNUM(TBL_1[[#This Row],[FECHA]],2),\"W\"&WEEKNUM(TBL_1[[#This Row],[FECHA]],2))","v":"W03"},"NG-099","JUNIOR SANCHEZ","OPERACIONES TÉCNICAS","FO","LUIS FIALLOS","VEHICULO NO AUTORIZADO",null,"NO"]
[{"$f":"+ROW()-ROW(TBL_1[[#Headers],[ITEM]])","v":104},"2026-01-17","09:24:00",{"$f":"+IF(WEEKNUM(TBL_1[[#This Row],[FECHA]],2)<10,\"W0\"&WEEKNUM(TBL_1[[#This Row],[FECHA]],2),\"W\"&WEEKNUM(TBL_1[[#This Row],[FECHA]],2))","v":"W03"},"A-078","WILLIAN AMADOR","OPERACIONES TÉCNICAS","FO","LENAR PALOMO","VEHICULO NO AUTORIZADO",null,"NO"]
[{"$f":"+ROW()-ROW(TBL_1[[#Headers],[ITEM]])","v":105},"2026-01-17","19:27:00",{"$f":"+IF(WEEKNUM(TBL_1[[#This Row],[FECHA]],2)<10,\"W0\"&WEEKNUM(TBL_1[[#This Row],[FECHA]],2),\"W\"&WEEKNUM(TBL_1[[#This Row],[FECHA]],2))","v":"W03"},"A-136","ORVIN SUAZO","O&M MAPLE","MCC","DANIEL MARROQUIN","VEHICULO NO AUTORIZADO",null,"NO"]
[{"$f":"+ROW()-ROW(TBL_1[[#Headers],[ITEM]])","v":106},"2026-01-17","19:44:00",{"$f":"+IF(WEEKNUM(TBL_1[[#This Row],[FECHA]],2)<10,\"W0\"&WEEKNUM(TBL_1[[#This Row],[FECHA]],2),\"W\"&WEEKNUM(TBL_1[[#This Row],[FECHA]],2))","v":"W03"},"A-107","JEYSON AYALA","O&M MAPLE","MCC","DAVID SANCHEZ","VEHICULO NO AUTORIZADO",null,"NO"]
[{"$f":"+ROW()-ROW(TBL_1[[#Headers],[ITEM]])","v":107},"2026-01-17","22:20:00",{"$f":"+IF(WEEKNUM(TBL_1[[#This Row],[FECHA]],2)<10,\"W0\"&WEEKNUM(TBL_1[[#This Row],[FECHA]],2),\"W\"&WEEKNUM(TBL_1[[#This Row],[FECHA]],2))","v":"W03"},"A-132","JIMY SALGADO","OPERACIONES TÉCNICAS","FO","LUIS FIALLOS","VEHICULO NO ASIGNADO/ NO AUTORIZADO",null,"NO"]
[{"$f":"+ROW()-ROW(TBL_1[[#Headers],[ITEM]])","v":108},"2026-01-17","22:22:00",{"$f":"+IF(WEEKNUM(TBL_1[[#This Row],[FECHA]],2)<10,\"W0\"&WEEKNUM(TBL_1[[#This Row],[FECHA]],2),\"W\"&WEEKNUM(TBL_1[[#This Row],[FECHA]],2))","v":"W03"},"A-028","ANGEL GARCIA","OPERACIONES TÉCNICAS","FO","LUIS FIALLOS","VEHICULO NO AUTORIZADO",null,"NO"]
[{"$f":"+ROW()-ROW(TBL_1[[#Headers],[ITEM]])","v":109},"2026-01-18","09:49:00",{"$f":"+IF(WEEKNUM(TBL_1[[#This Row],[FECHA]],2)<10,\"W0\"&WEEKNUM(TBL_1[[#This Row],[FECHA]],2),\"W\"&WEEKNUM(TBL_1[[#This Row],[FECHA]],2))","v":"W03"},"A-087","ERSI CANALES","OPERACIONES TÉCNICAS","FO","LENAR PALOMO","VEHICULO NO AUTORIZADO",null,"NO"]
[{"$f":"+ROW()-ROW(TBL_1[[#Headers],[ITEM]])","v":110},"2026-01-18","09:54:00",{"$f":"+IF(WEEKNUM(TBL_1[[#This Row],[FECHA]],2)<10,\"W0\"&WEEKNUM(TBL_1[[#This Row],[FECHA]],2),\"W\"&WEEKNUM(TBL_1[[#This Row],[FECHA]],2))","v":"W03"},"A-023","DAVIS VALLADARES","OPERACIONES TÉCNICAS","CONSTRUCCION FTTH","ELVIN TORRES","VEHICULO NO AUTORIZADO",null,"NO"]
[{"$f":"+ROW()-ROW(TBL_1[[#Headers],[ITEM]])","v":111},"2026-01-19","03:47:00",{"$f":"+IF(WEEKNUM(TBL_1[[#This Row],[FECHA]],2)<10,\"W0\"&WEEKNUM(TBL_1[[#This Row],[FECHA]],2),\"W\"&WEEKNUM(TBL_1[[#This Row],[FECHA]],2))","v":"W04"},"A-123","JOSE CACERES","O&M MAPLE","MPC","VICTOR ZECEÑA","VEHICULO NO AUTORIZADO",null,"NO"]
[{"$f":"+ROW()-ROW(TBL_1[[#Headers],[ITEM]])","v":112},"2026-01-19","03:48:00",{"$f":"+IF(WEEKNUM(TBL_1[[#This Row],[FECHA]],2)<10,\"W0\"&WEEKNUM(TBL_1[[#This Row],[FECHA]],2),\"W\"&WEEKNUM(TBL_1[[#This Row],[FECHA]],2))","v":"W04"},"A-028","ANGEL GARCIA","OPERACIONES TÉCNICAS","FO","LUIS FIALLOS","VEHICULO NO AUTORIZADO",null,"NO"]
[{"$f":"+ROW()-ROW(TBL_1[[#Headers],[ITEM]])","v":113},"2026-01-19","06:50:00",{"$f":"+IF(WEEKNUM(TBL_1[[#This Row],[FECHA]],2)<10,\"W0\"&WEEKNUM(TBL_1[[#This Row],[FECHA]],2),\"W\"&WEEKNUM(TBL_1[[#This Row],[FECHA]],2))","v":"W04"},"A-054","GUISTON MATUTE","RF","DRIVE TEST","MAX ALVAREZ","VEHICULO NO ASIGNADO/ NO AUTORIZADO",null,"NO"]
[{"$f":"+ROW()-ROW(TBL_1[[#Headers],[ITEM]])","v":114},"2026-01-19","18:01:00",{"$f":"+IF(WEEKNUM(TBL_1[[#This Row],[FECHA]],2)<10,\"W0\"&WEEKNUM(TBL_1[[#This Row],[FECHA]],2),\"W\"&WEEKNUM(TBL_1[[#This Row],[FECHA]],2))","v":"W04"},"A-062","MARVIN LANDAVERDE","O&M T2","FLM MCE T2","JAIME CACERES","VEHICULO NO AUTORIZADO",null,"NO"]
[{"$f":"+ROW()-ROW(TBL_1[[#Headers],[ITEM]])","v":115},"2026-01-19","22:34:00",{"$f":"+IF(WEEKNUM(TBL_1[[#This Row],[FECHA]],2)<10,\"W0\"&WEEKNUM(TBL_1[[#This Row],[FECHA]],2),\"W\"&WEEKNUM(TBL_1[[#This Row],[FECHA]],2))","v":"W04"},"A-003","JORGE JIMENEZ","O&M MAPLE","MCC","JAVIER ECHENIQUE","VEHICULO NO AUTORIZADO",null,"NO"]
[{"$f":"+ROW()-ROW(TBL_1[[#Headers],[ITEM]])","v":116},"2026-01-19","22:55:00",{"$f":"+IF(WEEKNUM(TBL_1[[#This Row],[FECHA]],2)<10,\"W0\"&WEEKNUM(TBL_1[[#This Row],[FECHA]],2),\"W\"&WEEKNUM(TBL_1[[#This Row],[FECHA]],2))","v":"W04"},"A-144","KEVIN MUNGUIA","OPERACIONES TÉCNICAS","FO","LENAR PALOMO","VEHICULO NO ASIGNADO/ NO AUTORIZADO",null,"NO"]
[{"$f":"+ROW()-ROW(TBL_1[[#Headers],[ITEM]])","v":117},"2026-01-20","03:55:00",{"$f":"+IF(WEEKNUM(TBL_1[[#This Row],[FECHA]],2)<10,\"W0\"&WEEKNUM(TBL_1[[#This Row],[FECHA]],2),\"W\"&WEEKNUM(TBL_1[[#This Row],[FECHA]],2))","v":"W04"},"A-025","DARWIN VELASQUEZ","O&M T1","ABAS. TIGO","GERARDO CALIX","VEHICULO NO AUTORIZADO",null,"NO"]
[{"$f":"+ROW()-ROW(TBL_1[[#Headers],[ITEM]])","v":118},"2026-01-20","04:44:00",{"$f":"+IF(WEEKNUM(TBL_1[[#This Row],[FECHA]],2)<10,\"W0\"&WEEKNUM(TBL_1[[#This Row],[FECHA]],2),\"W\"&WEEKNUM(TBL_1[[#This Row],[FECHA]],2))","v":"W04"},"NG-121","GERMAN OLIVA","OPERACIONES TÉCNICAS","HFC","KARLA MELENDEZ","VEHICULO NO AUTORIZADO",null,"NO"]
[{"$f":"+ROW()-ROW(TBL_1[[#Headers],[ITEM]])","v":119},"2026-01-20","07:35:00",{"$f":"+IF(WEEKNUM(TBL_1[[#This Row],[FECHA]],2)<10,\"W0\"&WEEKNUM(TBL_1[[#This Row],[FECHA]],2),\"W\"&WEEKNUM(TBL_1[[#This Row],[FECHA]],2))","v":"W04"},"A-099","RENE PEÑA","PROYECTOS","PROYECTOS VARIOS","LEONARDO MARQUEZ","VEHICULO NO ASIGNADO/ NO AUTORIZADO",null,"NO"]
[{"$f":"+ROW()-ROW(TBL_1[[#Headers],[ITEM]])","v":120},"2026-01-21","04:43:00",{"$f":"+IF(WEEKNUM(TBL_1[[#This Row],[FECHA]],2)<10,\"W0\"&WEEKNUM(TBL_1[[#This Row],[FECHA]],2),\"W\"&WEEKNUM(TBL_1[[#This Row],[FECHA]],2))","v":"W04"},"A-120","GERARDO MONDRAON","OPERACIONES TÉCNICAS","FO","LENAR PALOMO","VEHICULO NO ASIGNADO/ NO AUTORIZADO",null,"NO"]
[{"$f":"+ROW()-ROW(TBL_1[[#Headers],[ITEM]])","v":121},"2026-01-21","05:31:00",{"$f":"+IF(WEEKNUM(TBL_1[[#This Row],[FECHA]],2)<10,\"W0\"&WEEKNUM(TBL_1[[#This Row],[FECHA]],2),\"W\"&WEEKNUM(TBL_1[[#This Row],[FECHA]],2))","v":"W04"},"NG-115","ELDER CHINCHILLA","OPERACIONES TÉCNICAS","FO","LENAR PALOMO","VEHICULO NO AUTORIZADO",null,"NO"]
[{"$f":"+ROW()-ROW(TBL_1[[#Headers],[ITEM]])","v":122},"2026-01-21","07:29:00",{"$f":"+IF(WEEKNUM(TBL_1[[#This Row],[FECHA]],2)<10,\"W0\"&WEEKNUM(TBL_1[[#This Row],[FECHA]],2),\"W\"&WEEKNUM(TBL_1[[#This Row],[FECHA]],2))","v":"W04"},"A-144","KEVIN MUNGUIA","OPERACIONES TÉCNICAS","FO","LENAR PALOMO","VEHICULO NO ASIGNADO/ NO AUTORIZADO",null,"NO"]
[{"$f":"+ROW()-ROW(TBL_1[[#Headers],[ITEM]])","v":123},"2026-01-21","08:19:00",{"$f":"+IF(WEEKNUM(TBL_1[[#This Row],[FECHA]],2)<10,\"W0\"&WEEKNUM(TBL_1[[#This Row],[FECHA]],2),\"W\"&WEEKNUM(TBL_1[[#This Row],[FECHA]],2))","v":"W04"},"A-123","JOSE CACERES","O&M MAPLE","MPC","VICTOR ZECEÑA","VEHICULO NO AUTORIZADO",null,"NO"]
[{"$f":"+ROW()-ROW(TBL_1[[#Headers],[ITEM]])","v":124},"2026-01-21","22:46:00",{"$f":"+IF(WEEKNUM(TBL_1[[#This Row],[FECHA]],2)<10,\"W0\"&WEEKNUM(TBL_1[[#This Row],[FECHA]],2),\"W\"&WEEKNUM(TBL_1[[#This Row],[FECHA]],2))","v":"W04"},"A-094","JORGE MARTINEZ","ADMINISTRACION","ADMIN","HECTOR RIVERA ","VEHICULO NO ASIGNADO/ NO AUTORIZADO",null,"NO"]
[{"$f":"+ROW()-ROW(TBL_1[[#Headers],[ITEM]])","v":125},"2026-01-21","23:07:00",{"$f":"+IF(WEEKNUM(TBL_1[[#This Row],[FECHA]],2)<10,\"W0\"&WEEKNUM(TBL_1[[#This Row],[FECHA]],2),\"W\"&WEEKNUM(TBL_1[[#This Row],[FECHA]],2))","v":"W04"},"A-154","DIOGENES MONTOYA","OPERACIONES TÉCNICAS","CONSTRUCCION FTTH","ARIEL HERNANDEZ","VEHICULO NO AUTORIZADO",null,"NO"]
[{"$f":"+ROW()-ROW(TBL_1[[#Headers],[ITEM]])","v":126},"2026-01-22","04:56:00",{"$f":"+IF(WEEKNUM(TBL_1[[#This Row],[FECHA]],2)<10,\"W0\"&WEEKNUM(TBL_1[[#This Row],[FECHA]],2),\"W\"&WEEKNUM(TBL_1[[#This Row],[FECHA]],2))","v":"W04"},"A-087","ERSI CANALES","OPERACIONES TÉCNICAS","FO","LENAR PALOMO","VEHICULO NO AUTORIZADO",null,"NO"]
[{"$f":"+ROW()-ROW(TBL_1[[#Headers],[ITEM]])","v":127},"2026-01-22","05:37:00",{"$f":"+IF(WEEKNUM(TBL_1[[#This Row],[FECHA]],2)<10,\"W0\"&WEEKNUM(TBL_1[[#This Row],[FECHA]],2),\"W\"&WEEKNUM(TBL_1[[#This Row],[FECHA]],2))","v":"W04"},"A-123","JOSE CACERES","O&M MAPLE","MPC","VICTOR ZECEÑA","VEHICULO NO AUTORIZADO",null,"NO"]
[{"$f":"+ROW()-ROW(TBL_1[[#Headers],[ITEM]])","v":128},"2026-01-22","06:23:00",{"$f":"+IF(WEEKNUM(TBL_1[[#This Row],[FECHA]],2)<10,\"W0\"&WEEKNUM(TBL_1[[#This Row],[FECHA]],2),\"W\"&WEEKNUM(TBL_1[[#This Row],[FECHA]],2))","v":"W04"},"A-008","SERGIO PEREZ","O&M MAPLE","MCC","DANIEL MARROQUIN","VEHICULO NO AUTORIZADO",null,"NO"]
[{"$f":"+ROW()-ROW(TBL_1[[#Headers],[ITEM]])","v":129},"2026-01-22","06:51:00",{"$f":"+IF(WEEKNUM(TBL_1[[#This Row],[FECHA]],2)<10,\"W0\"&WEEKNUM(TBL_1[[#This Row],[FECHA]],2),\"W\"&WEEKNUM(TBL_1[[#This Row],[FECHA]],2))","v":"W04"},"A-063","EDWIN PEREZ","O&M MAPLE","MCC","DANIEL MARROQUIN","VEHICULO NO AUTORIZADO",null,"NO"]
[{"$f":"+ROW()-ROW(TBL_1[[#Headers],[ITEM]])","v":130},"2026-01-22","11:58:00",{"$f":"+IF(WEEKNUM(TBL_1[[#This Row],[FECHA]],2)<10,\"W0\"&WEEKNUM(TBL_1[[#This Row],[FECHA]],2),\"W\"&WEEKNUM(TBL_1[[#This Row],[FECHA]],2))","v":"W04"},"A-003","ALEXIS VARGAS","O&M MAPLE","SUPERVISION","MARIO MORAZAN","VEHICULO NO AUTORIZADO",null,"NO"]
[{"$f":"+ROW()-ROW(TBL_1[[#Headers],[ITEM]])","v":131},"2026-01-22","11:07:00",{"$f":"+IF(WEEKNUM(TBL_1[[#This Row],[FECHA]],2)<10,\"W0\"&WEEKNUM(TBL_1[[#This Row],[FECHA]],2),\"W\"&WEEKNUM(TBL_1[[#This Row],[FECHA]],2))","v":"W04"},"NG-138","YORMAN COREA","OPERACIONES TÉCNICAS","FO","IVO RUBIO","VEHICULO NO ASIGNADO/ NO AUTORIZADO",null,"NO"]
[{"$f":"+ROW()-ROW(TBL_1[[#Headers],[ITEM]])","v":132},"2026-01-22","12:01:00",{"$f":"+IF(WEEKNUM(TBL_1[[#This Row],[FECHA]],2)<10,\"W0\"&WEEKNUM(TBL_1[[#This Row],[FECHA]],2),\"W\"&WEEKNUM(TBL_1[[#This Row],[FECHA]],2))","v":"W04"},"A-123","JOSE CACERES","O&M MAPLE","MPC","VICTOR ZECEÑA","VEHICULO NO AUTORIZADO",null,"NO"]
[{"$f":"+ROW()-ROW(TBL_1[[#Headers],[ITEM]])","v":133},"2026-01-22","23:02:00",{"$f":"+IF(WEEKNUM(TBL_1[[#This Row],[FECHA]],2)<10,\"W0\"&WEEKNUM(TBL_1[[#This Row],[FECHA]],2),\"W\"&WEEKNUM(TBL_1[[#This Row],[FECHA]],2))","v":"W04"},"A-099","RENE PEÑA","PROYECTOS","PROYECTOS VARIOS","LEONARDO MARQUEZ","VEHICULO NO ASIGNADO/ NO AUTORIZADO",null,"NO"]
[{"$f":"+ROW()-ROW(TBL_1[[#Headers],[ITEM]])","v":134},"2026-01-22","23:07:00",{"$f":"+IF(WEEKNUM(TBL_1[[#This Row],[FECHA]],2)<10,\"W0\"&WEEKNUM(TBL_1[[#This Row],[FECHA]],2),\"W\"&WEEKNUM(TBL_1[[#This Row],[FECHA]],2))","v":"W04"},"A-022","JORGE JIMENEZ","O&M MAPLE","MCC","JAVIER ECHENIQUE","VEHICULO NO AUTORIZADO",null,"NO"]
[{"$f":"+ROW()-ROW(TBL_1[[#Headers],[ITEM]])","v":135},"2026-01-23","02:37:00",{"$f":"+IF(WEEKNUM(TBL_1[[#This Row],[FECHA]],2)<10,\"W0\"&WEEKNUM(TBL_1[[#This Row],[FECHA]],2),\"W\"&WEEKNUM(TBL_1[[#This Row],[FECHA]],2))","v":"W04"},"A-099","RENE PEÑA","PROYECTOS","PROYECTOS VARIOS","LEONARDO MARQUEZ","VEHICULO NO ASIGNADO/ NO AUTORIZADO",null,"NO"]
[{"$f":"+ROW()-ROW(TBL_1[[#Headers],[ITEM]])","v":136},"2026-01-23","04:22:00",{"$f":"+IF(WEEKNUM(TBL_1[[#This Row],[FECHA]],2)<10,\"W0\"&WEEKNUM(TBL_1[[#This Row],[FECHA]],2),\"W\"&WEEKNUM(TBL_1[[#This Row],[FECHA]],2))","v":"W04"},"A-145","OLVIN DURON","OPERACIONES TÉCNICAS","FO","ARIEL HERNANDEZ","VEHICULO NO AUTORIZADO",null,"NO"]
[{"$f":"+ROW()-ROW(TBL_1[[#Headers],[ITEM]])","v":137},"2026-01-23","05:18:00",{"$f":"+IF(WEEKNUM(TBL_1[[#This Row],[FECHA]],2)<10,\"W0\"&WEEKNUM(TBL_1[[#This Row],[FECHA]],2),\"W\"&WEEKNUM(TBL_1[[#This Row],[FECHA]],2))","v":"W04"},"A-144","KEVIN MUNGUIA","OPERACIONES TÉCNICAS","FO","LENAR PALOMO","VEHICULO NO AUTORIZADO",null,"NO"]
[{"$f":"+ROW()-ROW(TBL_1[[#Headers],[ITEM]])","v":138},"2026-01-23","07:40:00",{"$f":"+IF(WEEKNUM(TBL_1[[#This Row],[FECHA]],2)<10,\"W0\"&WEEKNUM(TBL_1[[#This Row],[FECHA]],2),\"W\"&WEEKNUM(TBL_1[[#This Row],[FECHA]],2))","v":"W04"},"A-132","JUNIOR MARTINEZ","OPERACIONES TÉCNICAS","FO","LUIS FIALLOS","VEHICULO NO ASIGNADO/ NO AUTORIZADO",null,"NO"]
[{"$f":"+ROW()-ROW(TBL_1[[#Headers],[ITEM]])","v":139},"2026-01-23","10:20:00",{"$f":"+IF(WEEKNUM(TBL_1[[#This Row],[FECHA]],2)<10,\"W0\"&WEEKNUM(TBL_1[[#This Row],[FECHA]],2),\"W\"&WEEKNUM(TBL_1[[#This Row],[FECHA]],2))","v":"W04"},"A-120","GERARDO MONDRAON","OPERACIONES TÉCNICAS","FO","LENAR PALOMO","VEHICULO NO ASIGNADO/ NO AUTORIZADO",null,"NO"]
[{"$f":"+ROW()-ROW(TBL_1[[#Headers],[ITEM]])","v":140},"2026-01-23","10:22:00",{"$f":"+IF(WEEKNUM(TBL_1[[#This Row],[FECHA]],2)<10,\"W0\"&WEEKNUM(TBL_1[[#This Row],[FECHA]],2),\"W\"&WEEKNUM(TBL_1[[#This Row],[FECHA]],2))","v":"W04"},"A-078","WILLIAN AMADOR","OPERACIONES TÉCNICAS","FO","LENAR PALOMO","VEHICULO NO AUTORIZADO",null,"NO"]
[{"$f":"+ROW()-ROW(TBL_1[[#Headers],[ITEM]])","v":141},"2026-01-24","11:37:00",{"$f":"+IF(WEEKNUM(TBL_1[[#This Row],[FECHA]],2)<10,\"W0\"&WEEKNUM(TBL_1[[#This Row],[FECHA]],2),\"W\"&WEEKNUM(TBL_1[[#This Row],[FECHA]],2))","v":"W04"},"A-127","JONATHAN ALVAREZ","OPERACIONES TÉCNICAS","FO","LENAR PALOMO","VEHICULO NO AUTORIZADO",null,"NO"]
[{"$f":"+ROW()-ROW(TBL_1[[#Headers],[ITEM]])","v":142},"2026-01-24","18:07:00",{"$f":"+IF(WEEKNUM(TBL_1[[#This Row],[FECHA]],2)<10,\"W0\"&WEEKNUM(TBL_1[[#This Row],[FECHA]],2),\"W\"&WEEKNUM(TBL_1[[#This Row],[FECHA]],2))","v":"W04"},"A-133","EDWIN REYES","OPERACIONES TÉCNICAS","FO","LUIS FIALLOS","VEHICULO NO AUTORIZADO",null,"NO"]
[{"$f":"+ROW()-ROW(TBL_1[[#Headers],[ITEM]])","v":143},"2026-01-24","18:08:00",{"$f":"+IF(WEEKNUM(TBL_1[[#This Row],[FECHA]],2)<10,\"W0\"&WEEKNUM(TBL_1[[#This Row],[FECHA]],2),\"W\"&WEEKNUM(TBL_1[[#This Row],[FECHA]],2))","v":"W04"},"NG-099","JUNIOR SANCHEZ","OPERACIONES TÉCNICAS","FO","LUIS FIALLOS","VEHICULO NO AUTORIZADO",null,"NO"]
[{"$f":"+ROW()-ROW(TBL_1[[#Headers],[ITEM]])","v":144},"2026-01-24","23:28:00",{"$f":"+IF(WEEKNUM(TBL_1[[#This Row],[FECHA]],2)<10,\"W0\"&WEEKNUM(TBL_1[[#This Row],[FECHA]],2),\"W\"&WEEKNUM(TBL_1[[#This Row],[FECHA]],2))","v":"W04"},"A-028","ANGEL GARCIA","OPERACIONES TÉCNICAS","FO","LUIS FIALLOS","VEHICULO NO AUTORIZADO",null,"NO"]
[{"$f":"+ROW()-ROW(TBL_1[[#Headers],[ITEM]])","v":145},"2026-01-25","00:48:00",{"$f":"+IF(WEEKNUM(TBL_1[[#This Row],[FECHA]],2)<10,\"W0\"&WEEKNUM(TBL_1[[#This Row],[FECHA]],2),\"W\"&WEEKNUM(TBL_1[[#This Row],[FECHA]],2))","v":"W04"},"A-133","EDWIN REYES","OPERACIONES TÉCNICAS","FO","LUIS FIALLOS","VEHICULO NO AUTORIZADO",null,"NO"]
[{"$f":"+ROW()-ROW(TBL_1[[#Headers],[ITEM]])","v":146},"2026-01-25","11:57:00",{"$f":"+IF(WEEKNUM(TBL_1[[#This Row],[FECHA]],2)<10,\"W0\"&WEEKNUM(TBL_1[[#This Row],[FECHA]],2),\"W\"&WEEKNUM(TBL_1[[#This Row],[FECHA]],2))","v":"W04"},"A-153","ELVIN EUCEDA","OPERACIONES TÉCNICAS","FO","ARIEL HERNANDEZ","VEHICULO NO AUTORIZADO",null,"NO"]
[{"$f":"+ROW()-ROW(TBL_1[[#Headers],[ITEM]])","v":147},"2026-01-25","15:16:00",{"$f":"+IF(WEEKNUM(TBL_1[[#This Row],[FECHA]],2)<10,\"W0\"&WEEKNUM(TBL_1[[#This Row],[FECHA]],2),\"W\"&WEEKNUM(TBL_1[[#This Row],[FECHA]],2))","v":"W04"},"A-099","RENE PEÑA","PROYECTOS","PROYECTOS VARIOS","LEONARDO MARQUEZ","VEHICULO NO AUTORIZADO",null,"NO"]
[{"$f":"+ROW()-ROW(TBL_1[[#Headers],[ITEM]])","v":148},"2026-01-25","22:08:00",{"$f":"+IF(WEEKNUM(TBL_1[[#This Row],[FECHA]],2)<10,\"W0\"&WEEKNUM(TBL_1[[#This Row],[FECHA]],2),\"W\"&WEEKNUM(TBL_1[[#This Row],[FECHA]],2))","v":"W04"},"A-152","MARIO FLORES","OPERACIONES TÉCNICAS","HFC","KARLA MELENDEZ","VEHICULO NO AUTORIZADO",null,"NO"]
[{"$f":"+ROW()-ROW(TBL_1[[#Headers],[ITEM]])","v":149},"2026-01-26","06:20:00",{"$f":"+IF(WEEKNUM(TBL_1[[#This Row],[FECHA]],2)<10,\"W0\"&WEEKNUM(TBL_1[[#This Row],[FECHA]],2),\"W\"&WEEKNUM(TBL_1[[#This Row],[FECHA]],2))","v":"W05"},"A-099","RENE PEÑA","PROYECTOS","PROYECTOS VARIOS","LEONARDO MARQUEZ","VEHICULO NO AUTORIZADO",null,"NO"]
[{"$f":"+ROW()-ROW(TBL_1[[#Headers],[ITEM]])","v":150},"2026-01-26","06:25:00",{"$f":"+IF(WEEKNUM(TBL_1[[#This Row],[FECHA]],2)<10,\"W0\"&WEEKNUM(TBL_1[[#This Row],[FECHA]],2),\"W\"&WEEKNUM(TBL_1[[#This Row],[FECHA]],2))","v":"W05"},"A-004","DAVID ALVAREZ","O&M T1","MCT","CRISTIAN ALBERTO","VEHICULO NO AUTORIZADO",null,"NO"]
[{"$f":"+ROW()-ROW(TBL_1[[#Headers],[ITEM]])","v":151},"2026-01-26","22:51:00",{"$f":"+IF(WEEKNUM(TBL_1[[#This Row],[FECHA]],2)<10,\"W0\"&WEEKNUM(TBL_1[[#This Row],[FECHA]],2),\"W\"&WEEKNUM(TBL_1[[#This Row],[FECHA]],2))","v":"W05"},"A-154","DIOGENES MONTOYA","OPERACIONES TÉCNICAS","CONSTRUCCION FTTH","ARIEL HERNANDEZ","VEHICULO NO AUTORIZADO","Comenta tecnico que el vehiculo no se ha movilizado, en la plataforma reporto movimientos a esa hora. ","NO"]
[{"$f":"+ROW()-ROW(TBL_1[[#Headers],[ITEM]])","v":152},"2026-01-27","05:34:00",{"$f":"+IF(WEEKNUM(TBL_1[[#This Row],[FECHA]],2)<10,\"W0\"&WEEKNUM(TBL_1[[#This Row],[FECHA]],2),\"W\"&WEEKNUM(TBL_1[[#This Row],[FECHA]],2))","v":"W05"},"A-073","RICARDO LOPEZ","O&M MAPLE","MCC","DANIEL MARROQUIN","VEHICULO NO ASIGNADO",null,"NO"]
[{"$f":"+ROW()-ROW(TBL_1[[#Headers],[ITEM]])","v":153},"2026-01-27","22:03:00",{"$f":"+IF(WEEKNUM(TBL_1[[#This Row],[FECHA]],2)<10,\"W0\"&WEEKNUM(TBL_1[[#This Row],[FECHA]],2),\"W\"&WEEKNUM(TBL_1[[#This Row],[FECHA]],2))","v":"W05"},"A-014","JOSE OSORTO","OPERACIONES TÉCNICAS","FO","LENAR PALOMO","VEHICULO NO AUTORIZADO",null,"NO"]
[{"$f":"+ROW()-ROW(TBL_1[[#Headers],[ITEM]])","v":154},"2026-01-28","00:56:00",{"$f":"+IF(WEEKNUM(TBL_1[[#This Row],[FECHA]],2)<10,\"W0\"&WEEKNUM(TBL_1[[#This Row],[FECHA]],2),\"W\"&WEEKNUM(TBL_1[[#This Row],[FECHA]],2))","v":"W05"},"A-054","LUIS FIALLOS","OPERACIONES TÉCNICAS","FO","IVAN PAZ","VEHICULO NO AUTORIZADO",null,"NO"]
[{"$f":"+ROW()-ROW(TBL_1[[#Headers],[ITEM]])","v":155},"2026-01-28","23:27:00",{"$f":"+IF(WEEKNUM(TBL_1[[#This Row],[FECHA]],2)<10,\"W0\"&WEEKNUM(TBL_1[[#This Row],[FECHA]],2),\"W\"&WEEKNUM(TBL_1[[#This Row],[FECHA]],2))","v":"W05"},"NG-108","OSLYN AVILA","RF","DRIVE TEST","MAX ALVAREZ","VEHICULO NO AUTORIZADO",null,"NO"]
[{"$f":"+ROW()-ROW(TBL_1[[#Headers],[ITEM]])","v":156},"2026-01-29","04:28:00",{"$f":"+IF(WEEKNUM(TBL_1[[#This Row],[FECHA]],2)<10,\"W0\"&WEEKNUM(TBL_1[[#This Row],[FECHA]],2),\"W\"&WEEKNUM(TBL_1[[#This Row],[FECHA]],2))","v":"W05"},"A-099","RENE PEÑA","PROYECTOS","PROYECTOS VARIOS","LEONARDO MARQUEZ","VEHICULO NO AUTORIZADO",null,"NO"]
[{"$f":"+ROW()-ROW(TBL_1[[#Headers],[ITEM]])","v":157},"2026-01-31","01:17:00",{"$f":"+IF(WEEKNUM(TBL_1[[#This Row],[FECHA]],2)<10,\"W0\"&WEEKNUM(TBL_1[[#This Row],[FECHA]],2),\"W\"&WEEKNUM(TBL_1[[#This Row],[FECHA]],2))","v":"W05"},"A-141","JOHAN MEMBREÑO","O&M MAPLE","LINEAS PRIMARIAS","CARLOS DAVID ALVAREZ","VEHICULO NO AUTORIZADO",null,"NO"]
[{"$f":"+ROW()-ROW(TBL_1[[#Headers],[ITEM]])","v":158},"2026-01-31","12:15:00",{"$f":"+IF(WEEKNUM(TBL_1[[#This Row],[FECHA]],2)<10,\"W0\"&WEEKNUM(TBL_1[[#This Row],[FECHA]],2),\"W\"&WEEKNUM(TBL_1[[#This Row],[FECHA]],2))","v":"W05"},"A-133","EDWIN REYES","OPERACIONES TÉCNICAS","FOT MANT","LUIS FIALLOS","VEHICULO NO AUTORIZADO",null,"NO"]
[{"$f":"+ROW()-ROW(TBL_1[[#Headers],[ITEM]])","v":159},"2026-01-31","12:32:00",{"$f":"+IF(WEEKNUM(TBL_1[[#This Row],[FECHA]],2)<10,\"W0\"&WEEKNUM(TBL_1[[#This Row],[FECHA]],2),\"W\"&WEEKNUM(TBL_1[[#This Row],[FECHA]],2))","v":"W05"},"A-026","JOSE SOSA","OPERACIONES TÉCNICAS","FOT MANT","LUIS FIALLOS","VEHICULO NO AUTORIZADO",null,"NO"]
[{"$f":"+ROW()-ROW(TBL_1[[#Headers],[ITEM]])","v":160},"2026-01-31","13:35:00",{"$f":"+IF(WEEKNUM(TBL_1[[#This Row],[FECHA]],2)<10,\"W0\"&WEEKNUM(TBL_1[[#This Row],[FECHA]],2),\"W\"&WEEKNUM(TBL_1[[#This Row],[FECHA]],2))","v":"W05"},"A-125","WILMER GEOVANY","O&M T2","FLM MP T2","RONNY ROMERO","VEHICULO NO ASIGNADO",null,"NO"]
[{"$f":"+ROW()-ROW(TBL_1[[#Headers],[ITEM]])","v":161},"2026-01-31","15:54:00",{"$f":"+IF(WEEKNUM(TBL_1[[#This Row],[FECHA]],2)<10,\"W0\"&WEEKNUM(TBL_1[[#This Row],[FECHA]],2),\"W\"&WEEKNUM(TBL_1[[#This Row],[FECHA]],2))","v":"W05"},"A-089","INMER LOPEZ","OPERACIONES TÉCNICAS","IPRAN","LENAR PALOMO","VEHICULO NO AUTORIZADO",null,"NO"]
[{"$f":"+ROW()-ROW(TBL_1[[#Headers],[ITEM]])","v":162},"2026-01-31","22:49:00",{"$f":"+IF(WEEKNUM(TBL_1[[#This Row],[FECHA]],2)<10,\"W0\"&WEEKNUM(TBL_1[[#This Row],[FECHA]],2),\"W\"&WEEKNUM(TBL_1[[#This Row],[FECHA]],2))","v":"W05"},"NG-121","GERMAN OLIVA","OPERACIONES TÉCNICAS","HFC","KARLA MELENDEZ","VEHICULO NO AUTORIZADO",null,"NO"]
[{"$f":"+ROW()-ROW(TBL_1[[#Headers],[ITEM]])","v":163},"2026-02-01","07:04:00",{"$f":"+IF(WEEKNUM(TBL_1[[#This Row],[FECHA]],2)<10,\"W0\"&WEEKNUM(TBL_1[[#This Row],[FECHA]],2),\"W\"&WEEKNUM(TBL_1[[#This Row],[FECHA]],2))","v":"W05"},"NG-134","FLOTA","ADMINISTRACION","FLOTA","HECTOR RIVERA ","VEHICULO NO ASIGNADO/ NO AUTORIZADO",null,"NO"]
[{"$f":"+ROW()-ROW(TBL_1[[#Headers],[ITEM]])","v":164},"2026-02-01","08:25:00",{"$f":"+IF(WEEKNUM(TBL_1[[#This Row],[FECHA]],2)<10,\"W0\"&WEEKNUM(TBL_1[[#This Row],[FECHA]],2),\"W\"&WEEKNUM(TBL_1[[#This Row],[FECHA]],2))","v":"W05"},"A-120","LUIS MONDRAGON","OPERACIONES TÉCNICAS","FO","LENAR PALOMO","VEHICULO NO ASIGNADO/ NO AUTORIZADO",null,"NO"]

{"sheet":"TD","index":1,"n_rows":25,"n_cols":34,"rows_kept":25,"cut":false,"hidden":true,"merged":[]}
["JUSTIFICACIÓN","NO",null,null,null,"JUSTIFICACIÓN","NO",null,null,null,"JUSTIFICACIÓN","NO",null,null,null,"JUSTIFICACIÓN","NO",null,null,null,null,null,null,"JUSTIFICACIÓN","NO",null,null,null,"JUSTIFICACIÓN","NO",null,null,"JUSTIFICACIÓN","NO"]
[]
["Etiquetas de fila","Count of ITEM",null,null,null,"Etiquetas de fila","Count of ITEM",null,null,null,"Etiquetas de fila","Count of ITEM",null,null,null,"Count of ITEM","Etiquetas de columna",null,null,null,null,null,null,"Etiquetas de fila","Count of ITEM",null,null,null,"Etiquetas de fila","Count of ITEM",null,null,"Etiquetas de fila","Count of ITEM"]
["OPERACIONES TÉCNICAS",90,null,null,null,"VEHICULO NO ASIGNADO",35,null,null,null,"W01",16,null,null,null,"Etiquetas de fila","VEHICULO NO ASIGNADO","VEHICULO NO AUTORIZADO","VEHICULO NO ASIGNADO/ NO AUTORIZADO","Total general",null,null,null,"FO",70,null,null,null,"ARIEL HERNANDEZ",20,null,null,"ene",160]
["O&M MAPLE",32,null,null,null,"VEHICULO NO AUTORIZADO",78,null,null,null,"W02",62,null,null,null,"ene",35,78,47,160,null,null,null,"PROYECTOS VARIOS",17,null,null,null,"KARLA MELENDEZ",10,null,null,"feb",2]
["PROYECTOS",18,null,null,null,"VEHICULO NO ASIGNADO/ NO AUTORIZADO",49,null,null,null,"W03",30,null,null,null,"feb",null,null,2,2,null,null,null,"MCC",13,null,null,null,"ELVIN TORRES",3,null,null,"Total general",162]
["O&M T2",9,null,null,null,"Total general",162,null,null,null,"W04",38,null,null,null,"Total general",35,78,49,162,null,null,null,"MPC",12,null,null,null,"GERARDO CALIX",2]
["ADMINISTRACION",6,null,null,null,null,null,null,null,null,"W05",16,null,null,null,null,null,null,null,null,null,null,null,"HFC",11,null,null,null,"MAX ALVAREZ",2]
["O&M T1",5,null,null,null,null,null,null,null,null,"Total general",162,null,null,null,null,null,null,null,null,null,null,null,"FLM MP T2",6,null,null,null,"IVAN PAZ",2]
["RF",2,null,null,null,null,null,null,null,null,null,null,null,null,null,null,null,null,null,null,null,null,null,"CONSTRUCCION FTTH",5,null,null,null,"MISAEL CACERES",1]
["Total general",162,null,null,null,null,null,null,null,null,null,null,null,null,null,null,null,null,null,null,null,null,null,"FLOTA",4,null,null,null,"JORGE GAMARRA",1]
[null,null,null,null,null,null,null,null,null,null,null,null,null,null,null,null,null,null,null,null,null,null,null,"MPT",3,null,null,null,"OSCAR ROQUE",1]
[null,null,null,null,null,null,null,null,null,null,null,null,null,null,null,null,null,null,null,null,null,null,null,"FOT MANT",3,null,null,null,"CARLOS DAVID ALVAREZ",1]
[null,null,null,null,null,null,null,null,null,null,null,null,null,null,null,null,null,null,null,null,null,null,null,"FLM MCE T2",3,null,null,null,"MARIO SANCHEZ",1]
[null,null,null,null,null,null,null,null,null,null,null,null,null,null,null,null,null,null,null,null,null,null,null,"ABAS. RURAL",3,null,null,null,"Total general",44]
[null,null,null,null,null,null,null,null,null,null,null,null,null,null,null,null,null,null,null,null,null,null,null,"SUPERVISION",2]
[null,null,null,null,null,null,null,null,null,null,null,null,null,null,null,null,null,null,null,null,null,null,null,"DRIVE TEST",2]
[null,null,null,null,null,null,null,null,null,null,null,null,null,null,null,null,null,null,null,null,null,null,null,"ADMIN",2]
[null,null,null,null,null,null,null,null,null,null,null,null,null,null,null,null,null,null,null,null,null,null,null,"ABAS. TIGO",1]
[null,null,null,null,null,null,null,null,null,null,null,null,null,null,null,null,null,null,null,null,null,null,null,"SINERGIA",1]
[null,null,null,null,null,null,null,null,null,null,null,null,null,null,null,null,null,null,null,null,null,null,null,"MGP RURAL",1]
[null,null,null,null,null,null,null,null,null,null,null,null,null,null,null,null,null,null,null,null,null,null,null,"LINEAS PRIMARIAS",1]
[null,null,null,null,null,null,null,null,null,null,null,null,null,null,null,null,null,null,null,null,null,null,null,"MCT",1]
[null,null,null,null,null,null,null,null,null,null,null,null,null,null,null,null,null,null,null,null,null,null,null,"IPRAN",1]
[null,null,null,null,null,null,null,null,null,null,null,null,null,null,null,null,null,null,null,null,null,null,null,"Total general",162]

{"sheet":"DB","index":2,"n_rows":0,"n_cols":0,"rows_kept":0,"cut":false,"hidden":false,"merged":[]}

{"sheet":"tags","index":3,"n_rows":82,"n_cols":12,"rows_kept":82,"cut":false,"hidden":true,"merged":[]}
["GERENCIAS",null,"PROYECTOS",null,null,null,"COORDINADORES",null,"EVENTOS",null,null,"JUSTIFICACIÓN"]
["ADMINISTRACION",null,"ABAS. HUAWEI",null,null,null,"AARON PORTILLO",null,"VEHICULO MAL ASIGNADO",null,null,"SÍ"]
["EHS",null,"ABAS. RURAL",null,null,null,"ALEJANDRO GOMEZ",null,"VEHICULO NO ASIGNADO",null,null,"NO"]
["O&M T1",null,"ADMIN",null,null,null,"ALEXIS RODRIGUEZ",null,"VEHICULO NO AUTORIZADO"]
["IT",null,"BUSQUEDA DE RUIDO",null,null,null,"ANDY ORTIZ",null,"VEHICULO NO ASIGNADO/ NO AUTORIZADO"]
["O&M T2",null,"CABAN",null,null,null,"ANGEL GIRON"]
["O&M MAPLE",null,"CONSUMIBLES",null,null,null,"ARIEL HERNANDEZ"]
["OPERACIONES TÉCNICAS",null,"DRIVE TEST",null,null,null,"AXEL GOMEZ"]
["PROYECTOS",null,"EHS",null,null,null,"BERTHA AGUILAR"]
["RF",null,"FLM ABAS T2",null,null,null,"BLADIMIR POPOFF"]
["PYL",null,"FLM MC T2",null,null,null,"CARLOS CHAVEZ"]
[null,null,"FLM MCE T2",null,null,null,"CARLOS DAVID ALVAREZ"]
[null,null,"FLM MP T2",null,null,null,"CRISTIAN ROMERO"]
[null,null,"FLOTA",null,null,null,"DANIEL VIT"]
[null,null,"FO",null,null,null,"DARWIN PEREIRA"]
[null,null,"HFC",null,null,null,"DAVID ALVAREZ"]
[null,null,"LINEAS PRIMARIAS",null,null,null,"DAVID SALINAS"]
[null,null,"LOTO",null,null,null,"DAVID SANCHEZ"]
[null,null,"MCC",null,null,null,"DENIS FLORES"]
[null,null,"MCE",null,null,null,"DENNIS BORJAS"]
[null,null,"MCH",null,null,null,"EDWIN BALLESTEROS"]
[null,null,"MONITOREO DE NODOS",null,null,null,"EFRAIN MEJIA"]
[null,null,"MPC",null,null,null,"ELVIN TORRES"]
[null,null,"MPH",null,null,null,"EMILIO BALLESTEROS"]
[null,null,"MR. MOTO",null,null,null,"FABIO BARAHONA"]
[null,null,"PROYECTOS VARIOS",null,null,null,"FRANCISCO AMAYA"]
[null,null,"SINERGIA",null,null,null,"GADIEL FLORES"]
[null,null,"SITIOS CORE",null,null,null,"GERARDO CALIX"]
[null,null,"SUPERVISION",null,null,null,"GERMAN PADGETT"]
[null,null,"VIP",null,null,null,"GERSON GAMEZ"]
[null,null,"MPT",null,null,null,"HECTOR VÁSQUEZ"]
[null,null,"MCT",null,null,null,"ISAAC ARTIGA"]
[null,null,"ROLLOUT",null,null,null,"IVAN JARUFE"]
[null,null,"LOTO",null,null,null,"IVAN PAZ"]
[null,null,"IPRAN",null,null,null,"JESUS BANEGAS"]
[null,null,"FOT MANT",null,null,null,"JORGE GAMARRA"]
[null,null,"MRM",null,null,null,"JOSE HERNANDEZ"]
[null,null,"AMB",null,null,null,"JUAN TORRES"]
[null,null,"ABAS. TIGO",null,null,null,"KARLA MELENDEZ"]
[null,null,"JEFATURA",null,null,null,"LESTER MALDONADO"]
[null,null,"MGP RURAL",null,null,null,"LUIS CERRATO"]
[null,null,"LIMPIEZA DE TANQUE",null,null,null,"LUIS LARA"]
[null,null,"CONSTRUCCION FTTH",null,null,null,"LUIS MARTINEZ"]
[null,null,null,null,null,null,"MARIO FLORES / GABRIEL SUAZO"]
[null,null,null,null,null,null,"MARIO SANCHEZ"]
[null,null,null,null,null,null,"MAX ALVAREZ"]
[null,null,null,null,null,null,"MISAEL CACERES"]
[null,null,null,null,null,null,"NELSON CASTRO"]
[null,null,null,null,null,null,"OSCAR PEREZ"]
[null,null,null,null,null,null,"OSCAR ROQUE"]
[null,null,null,null,null,null,"OSCAR ZUNIGA"]
[null,null,null,null,null,null,"RAFAEL HERNANDEZ / MARLON LOPEZ"]
[null,null,null,null,null,null,"ROGER CARRANZA"]
[null,null,null,null,null,null,"ROLANDO CRUZ"]
[null,null,null,null,null,null,"RONNY ROMERO"]
[null,null,null,null,null,null,"RONY MARTINEZ"]
[null,null,null,null,null,null,"VALERIA MARADIAGA"]
[null,null,null,null,null,null,"VICTOR ANDRADE"]
[null,null,null,null,null,null,"VICTOR ZECEÑA"]
[null,null,null,null,null,null,"LENAR PALOMO"]
[null,null,null,null,null,null,"IDALMY GALO"]
[null,null,null,null,null,null,"JOSE ZELAYA"]
[null,null,null,null,null,null,"LUIS FERNANDO SANCHEZ"]
[null,null,null,null,null,null,"ANA PAOLA OSORTO"]
[null,null,null,null,null,null,"ROLANDO PINEDA"]
[null,null,null,null,null,null,"HECTOR RIVERA "]
[null,null,null,null,null,null,"YOHANA SILVA"]
[null,null,null,null,null,null,"DANIEL MARROQUIN"]
[null,null,null,null,null,null,"IVO RUBIO"]
[null,null,null,null,null,null,"HECTOR FONSECA"]
[null,null,null,null,null,null,"NAHUN OLGUIN"]
[null,null,null,null,null,null,"CRISTIAN ALBERTO"]
[null,null,null,null,null,null,"MARIO MORAZAN"]
[null,null,null,null,null,null,"JAVIER ECHENIQUE"]
[null,null,null,null,null,null,"JAIME CACERES"]
[null,null,null,null,null,null,"KEVIN NIETO"]
[null,null,null,null,null,null,"LUIS FIALLOS"]
[null,null,null,null,null,null,"DAVID ZELAYA"]
[null,null,null,null,null,null,"JOSE MALDONADO"]
[null,null,null,null,null,null,"LEONARDO MARQUEZ"]
[null,null,null,null,null,null,"DANIEL RAMOS"]
[null,null,null,null,null,null,"JESUS RODRIGUEZ"]